Workbook

Sheet シート
B2: 主任者登録更新の申請可能期間計算シート
C4: 主任者登録年月日（西暦で入力） | BM4: =IF(AT4="","",+AT4) -> 
B6: 36 | C6: 主任者登録有効期限 | AI6: =IF(DAY($AT$4)>DAY(EDATE($AT$4,B6)),EDATE($AT$4,B6),EDATE($AT$4,B6)-1) -> 1902-12-30 | GG6: 講習開催地 | GH6: 表示データ | GI6: 講習開催日 | GJ6: 講習開催日
B8: 24 | C8: 有効期間の12ヵ月前 | AI8: =IF(DAY($AT$4)>DAY(EDATE($AT$4,B8)),EDATE($AT$4,B8),EDATE($AT$4,B8)-1) -> 1901-12-30 | GG8: eラーニング | GH8: 【eﾗｰﾆﾝｸﾞ】令和7年6月16日開催 | GI8: 2025-06-16 | GJ8: 2025-06-16
B9: 30 | C9: 有効期間の6ヵ月前 | AI9: 1902-06-29 | GG9: eラーニング | GH9: 【eﾗｰﾆﾝｸﾞ】令和7年7月15日開催 | GI9: 2025-07-15 | GJ9: 2025-07-15
B10: 31 | C10: 有効期間の5ヵ月前 | AI10: 1902-07-30 | GG10: eラーニング | GH10: 【eﾗｰﾆﾝｸﾞ】令和7年8月15日開催 | GI10: 2025-08-15 | GJ10: 2025-08-15
B11: 32 | C11: 有効期間の4ヵ月前 | AI11: 1902-08-30 | GG11: eラーニング | GH11: 【eﾗｰﾆﾝｸﾞ】令和7年9月16日開催 | GI11: 2025-09-16 | GJ11: 2025-09-16
B12: 33 | C12: 有効期間の3ヵ月前 | AI12: 1902-09-29 | GG12: eラーニング | GH12: 【eﾗｰﾆﾝｸﾞ】令和7年10月15日開催 | GI12: 2025-10-15 | GJ12: 2025-10-15
B13: 34 | C13: 有効期間の2ヵ月前 | AI13: 1902-10-30 | GG13: eラーニング | GH13: 【eﾗｰﾆﾝｸﾞ】令和7年11月17日開催 | GI13: 2025-11-17 | GJ13: 2025-11-17
B14: 24 | C14: 有効期間の6ヵ月前の6ヵ月前 | AI14: 1901-12-30 | GG14: eラーニング | GH14: 【eﾗｰﾆﾝｸﾞ】令和7年12月15日開催 | GI14: 2025-12-15 | GJ14: 2025-12-15
B15: 25 | C15: 有効期間の6ヵ月前の5ヵ月前 | AI15: 1902-01-30 | GG15: eラーニング | GH15: 【eﾗｰﾆﾝｸﾞ】令和8年1月15日開催 | GI15: 2026-01-15 | GJ15: 2026-01-15
B16: 26 | C16: 有効期間の6ヵ月前の4ヵ月前 | AI16: 1902-02-27 | GG16: eラーニング | GH16: 【eﾗｰﾆﾝｸﾞ】令和8年2月16日開催 | GI16: 2026-02-16 | GJ16: 2026-02-16
B17: 27 | C17: 有効期間の6ヵ月前の3ヵ月前 | AI17: 1902-03-30 | GG17: eラーニング | GH17: 【eﾗｰﾆﾝｸﾞ】令和8年3月16日開催 | GI17: 2026-03-16 | GJ17: 2026-03-16
B18: 28 | C18: 有効期間の6ヵ月前の2ヵ月前 | AI18: 1902-04-29 | GG18: 札幌会場 | GH18: 札幌会場 令和7年8月19日開催 | GI18: 2025-08-19 | GJ18: 2025-08-19
B19: 6 | C19: 登録講習受講日（予定）の6ヵ月後-1日 | AI19: =IF(DAY($BV$67)>DAY(EDATE($BV$67,B19)),EDATE($BV$67,B19),EDATE($BV$67,B19)-1) ->  | GG19: 仙台会場 | GH19: 仙台会場 令和7年7月10日開催 | GI19: 2025-07-10 | GJ19: 2025-07-10
B20: 26 | C20: 有効期間の10ヵ月前 | AI20: =IF(DAY($AT$4)>DAY(EDATE($AT$4,B20)),EDATE($AT$4,B20),EDATE($AT$4,B20)-1) -> 1902-02-27 | GG20: 東京(神田)会場 | GH20: 東京会場（神田） 令和7年6月5日開催 | GI20: 2025-06-05 | GJ20: 2025-06-05
GG21: 東京(神田)会場 | GH21: 東京会場（神田） 令和7年8月7日開催 | GI21: 2025-08-07 | GJ21: 2025-08-07
GG22: 東京(神田)会場 | GH22: 東京会場（神田） 令和7年10月28日開催 | GI22: 2025-10-28 | GJ22: 2025-10-28
GG23: 東京(秋葉原)会場 | GH23: 東京会場（秋葉原） 令和8年1月22日開催 | GI23: 2026-01-22 | GJ23: 2026-01-22
GG24: 金沢会場 | GH24: 金沢会場 令和7年7月29日開催 | GI24: 2025-07-29 | GJ24: 2025-07-29
GG25: 名古屋会場 | GH25: 名古屋会場 令和7年7月17日開催 | GI25: 2025-07-17 | GJ25: 2025-07-17
GG26: 大阪会場 | GH26: 大阪会場 令和7年7月3日開催 | GI26: 2025-07-03 | GJ26: 2025-07-03
GG27: 広島会場 | GH27: 広島会場 令和7年7月8日開催 | GI27: 2025-07-08 | GJ27: 2025-07-08
GG28: 高松会場 | GH28: 高松会場 令和7年8月26開催 | GI28: 2025-08-26 | GJ28: 2025-08-26
GG29: 福岡会場 | GH29: 福岡会場 令和7年7月24日開催 | GI29: 2025-07-24 | GJ29: 2025-07-24
GG30: 沖縄会場 | GH30: 沖縄会場 令和7年6月12日開催 | GI30: 2025-06-12 | GJ30: 2025-06-12
BV67: =VLOOKUP(AT69,$GH$8:$GJ$65,3,0) -> 
C69: 登録講習受講日
AI73: =IF(#REF!="","",IF(#REF!="個人申請",+IF(AND(AT69-#REF!>=0,#REF!-AT69>=0),"","登録更新可能期間外です"),IF(#REF!="団体申請",+IF(AND(AT69-#REF!>=0,#REF!-AT69>=0),"","登録更新可能期間外です")))) ->  | AQ73: =+IF(AT4="","",+AI9) ->  | DV73: =IF(#REF!="","",IF(#REF!="個人申請",+IF(AND(#REF!-#REF!>=0,#REF!-#REF!>=0),"","登録更新可能期間外です"),IF(#REF!="団体申請",+IF(AND(#REF!-#REF!>=0,#REF!-#REF!>=0),"","登録更新可能期間外です")))) ->  | ED73: =IF(AT4="","",+AI9) -> 
BC75: =IF(AT4="","",+AI13) ->  | EM75: =IF(AT4="","",+AI12) -> 
C77: 主任者登録年月日 | BI77: =+C6 -> 主任者登録有効期限 | CP77: =+C77 -> 主任者登録年月日 | EV77: =+BI77 -> 主任者登録有効期限
C78: =+IF(+AT4="","",AT4) ->  | BI78: =IF(AT4="","",+AI6) ->  | CP78: =IF(AT4="","",+AT4) ->  | EV78: =IF(AT4="","",+AI6) -> 
C87: =IF(AT4="","",+AQ73) ->  | U87: ～ | X87: =IF(AT4="","",+BC75) ->  | CP87: =IF(AT4="","",+ED73) ->  | DH87: ～ | DK87: =IF(AT4="","",+EM75) -> 
C89: 登録更新の申請手続き（申請書類準備、送付等）に余裕を持つため、更新申請可能期間 を2ヵ月以上確保することをおすすめします。 更新申請可能期間を2ヵ月以上確保するためには、 有効期限の10ヵ月前～4ヵ月前の6ヵ月間に実施される講習を受講してください。 ■目安期間 | CP89: 登録更新の申請手続き（申請書類準備、送付等）に余裕を持つため、更新申請可能期間 を2ヵ月以上確保することをおすすめします。 更新申請可能期間を2ヵ月以上確保するためには、 有効期限の10ヵ月前～5ヵ月前の5ヵ月間に実施される講習を受講してください。 ■目安期間
C90: =IF(AT4="","",+AI20) ->  | U90: ～ | X90: =IF(AT4="","",+AI11) ->  | AQ90: の期間の講習を受講をおすすめします | CP90: =IF(AT4="","",+AI20) ->  | DH90: ～ | DK90: =IF(AT4="","",+AI10) ->  | ED90: =+AQ90 -> の期間の講習を受講をおすすめします
C92: 51 | D92: 52 | E92: 53 | F92: 54 | G92: 55 | H92: 56 | I92: 57 | J92: 58 | K92: 59 | L92: 60 | M92: 61 | N92: 62 | O92: 63 | P92: 64 | Q92: 65 | R92: 66 | S92: 67 | T92: 68 | U92: 69 | V92: 70 | W92: 71 | X92: 72 | Y92: 73 | Z92: 74 | AA92: 75 | AB92: 76 | AC92: 77 | AD92: 78 | AE92: 79 | AF92: 80 | AG92: 81 | AH92: 82 | AI92: 83 | AJ92: 84 | AK92: 85 | AL92: 86 | AM92: 87 | AN92: 88 | AO92: 89 | AP92: 90 | AQ92: 91 | AR92: 92 | AS92: 93 | AT92: 94 | AU92: 95 | AV92: 96 | AW92: 97 | AX92: 98 | AY92: 99 | AZ92: 100 | BA92: 101 | BB92: 102 | BC92: 103 | BD92: 104 | BE92: 105 | BF92: 106 | BG92: 107 | BH92: 108 | BI92: 109 | BJ92: 110 | BK92: 111 | BL92: 112 | BM92: 113 | BN92: 114 | BO92: 115 | BP92: 116 | BQ92: 117 | BR92: 118 | BS92: 119 | BT92: 120 | BU92: 121 | CP92: 51 | CQ92: 52 | CR92: 53 | CS92: 54 | CT92: 55 | CU92: 56 | CV92: 57 | CW92: 58 | CX92: 59 | CY92: 60 | CZ92: 61 | DA92: 62 | DB92: 63 | DC92: 64 | DD92: 65 | DE92: 66 | DF92: 67 | DG92: 68 | DH92: 69 | DI92: 70 | DJ92: 71 | DK92: 72 | DL92: 73 | DM92: 74 | DN92: 75 | DO92: 76 | DP92: 77 | DQ92: 78 | DR92: 79 | DS92: 80 | DT92: 81 | DU92: 82 | DV92: 83 | DW92: 84 | DX92: 85 | DY92: 86 | DZ92: 87 | EA92: 88 | EB92: 89 | EC92: 90 | ED92: 91 | EE92: 92 | EF92: 93 | EG92: 94 | EH92: 95 | EI92: 96 | EJ92: 97 | EK92: 98 | EL92: 99 | EM92: 100 | EN92: 101 | EO92: 102 | EP92: 103 | EQ92: 104 | ER92: 105 | ES92: 106 | ET92: 107 | EU92: 108 | EV92: 109 | EW92: 110 | EX92: 111 | EY92: 112 | EZ92: 113 | FA92: 114 | FB92: 115 | FC92: 116 | FD92: 117 | FE92: 118 | FF92: 119 | FG92: 120 | FH92: 121
C93: =IF(AT4="","",IF(AT69="","",+BV67)) ->  | U93: ～ | X93: =IF(AT4="","",IF(AT69="","",+AI19)) ->  | CP93: =IF(AT4="","",IF(AT69="","",+BV67)) ->  | DH93: ～ | DK93: =IF(AT4="","",IF(AT69="","",+AI19)) -> 
C95: =SUMIF(日付データ!$B$3:$B$1227,C$92,日付データ!$D$3:$D$1227) ->  | D95: =SUMIF(日付データ!$B$3:$B$1227,D$92,日付データ!$D$3:$D$1227) ->  | E95: =SUMIF(日付データ!$B$3:$B$1227,E$92,日付データ!$D$3:$D$1227) ->  | F95: =SUMIF(日付データ!$B$3:$B$1227,F$92,日付データ!$D$3:$D$1227) ->  | G95: =SUMIF(日付データ!$B$3:$B$1227,G$92,日付データ!$D$3:$D$1227) ->  | H95: =SUMIF(日付データ!$B$3:$B$1227,H$92,日付データ!$D$3:$D$1227) ->  | I95: =SUMIF(日付データ!$B$3:$B$1227,I$92,日付データ!$D$3:$D$1227) ->  | J95: =SUMIF(日付データ!$B$3:$B$1227,J$92,日付データ!$D$3:$D$1227) ->  | K95: =SUMIF(日付データ!$B$3:$B$1227,K$92,日付データ!$D$3:$D$1227) ->  | L95: =SUMIF(日付データ!$B$3:$B$1227,L$92,日付データ!$D$3:$D$1227) ->  | M95: =SUMIF(日付データ!$B$3:$B$1227,M$92,日付データ!$D$3:$D$1227) ->  | N95: =SUMIF(日付データ!$B$3:$B$1227,N$92,日付データ!$D$3:$D$1227) ->  | O95: =SUMIF(日付データ!$B$3:$B$1227,O$92,日付データ!$D$3:$D$1227) ->  | P95: =SUMIF(日付データ!$B$3:$B$1227,P$92,日付データ!$D$3:$D$1227) ->  | Q95: =SUMIF(日付データ!$B$3:$B$1227,Q$92,日付データ!$D$3:$D$1227) ->  | R95: =SUMIF(日付データ!$B$3:$B$1227,R$92,日付データ!$D$3:$D$1227) ->  | S95: =SUMIF(日付データ!$B$3:$B$1227,S$92,日付データ!$D$3:$D$1227) ->  | T95: =SUMIF(日付データ!$B$3:$B$1227,T$92,日付データ!$D$3:$D$1227) ->  | U95: =SUMIF(日付データ!$B$3:$B$1227,U$92,日付データ!$D$3:$D$1227) ->  | V95: =SUMIF(日付データ!$B$3:$B$1227,V$92,日付データ!$D$3:$D$1227) ->  | W95: =SUMIF(日付データ!$B$3:$B$1227,W$92,日付データ!$D$3:$D$1227) ->  | X95: =SUMIF(日付データ!$B$3:$B$1227,X$92,日付データ!$D$3:$D$1227) ->  | Y95: =SUMIF(日付データ!$B$3:$B$1227,Y$92,日付データ!$D$3:$D$1227) ->  | Z95: =SUMIF(日付データ!$B$3:$B$1227,Z$92,日付データ!$D$3:$D$1227) ->  | AA95: =SUMIF(日付データ!$B$3:$B$1227,AA$92,日付データ!$D$3:$D$1227) ->  | AB95: =SUMIF(日付データ!$B$3:$B$1227,AB$92,日付データ!$D$3:$D$1227) ->  | AC95: =SUMIF(日付データ!$B$3:$B$1227,AC$92,日付データ!$D$3:$D$1227) ->  | AD95: =SUMIF(日付データ!$B$3:$B$1227,AD$92,日付データ!$D$3:$D$1227) ->  | AE95: =SUMIF(日付データ!$B$3:$B$1227,AE$92,日付データ!$D$3:$D$1227) ->  | AF95: =SUMIF(日付データ!$B$3:$B$1227,AF$92,日付データ!$D$3:$D$1227) ->  | AG95: =SUMIF(日付データ!$B$3:$B$1227,AG$92,日付データ!$D$3:$D$1227) ->  | AH95: =SUMIF(日付データ!$B$3:$B$1227,AH$92,日付データ!$D$3:$D$1227) ->  | AI95: =SUMIF(日付データ!$B$3:$B$1227,AI$92,日付データ!$D$3:$D$1227) ->  | AJ95: =SUMIF(日付データ!$B$3:$B$1227,AJ$92,日付データ!$D$3:$D$1227) ->  | AK95: =SUMIF(日付データ!$B$3:$B$1227,AK$92,日付データ!$D$3:$D$1227) ->  | AL95: =SUMIF(日付データ!$B$3:$B$1227,AL$92,日付データ!$D$3:$D$1227) ->  | AM95: =SUMIF(日付データ!$B$3:$B$1227,AM$92,日付データ!$D$3:$D$1227) ->  | AN95: =SUMIF(日付データ!$B$3:$B$1227,AN$92,日付データ!$D$3:$D$1227) ->  | AO95: =SUMIF(日付データ!$B$3:$B$1227,AO$92,日付データ!$D$3:$D$1227) ->  | AP95: =SUMIF(日付データ!$B$3:$B$1227,AP$92,日付データ!$D$3:$D$1227) ->  | AQ95: =SUMIF(日付データ!$B$3:$B$1227,AQ$92,日付データ!$D$3:$D$1227) ->  | AR95: =SUMIF(日付データ!$B$3:$B$1227,AR$92,日付データ!$D$3:$D$1227) ->  | AS95: =SUMIF(日付データ!$B$3:$B$1227,AS$92,日付データ!$D$3:$D$1227) ->  | AT95: =SUMIF(日付データ!$B$3:$B$1227,AT$92,日付データ!$D$3:$D$1227) ->  | AU95: =SUMIF(日付データ!$B$3:$B$1227,AU$92,日付データ!$D$3:$D$1227) ->  | AV95: =SUMIF(日付データ!$B$3:$B$1227,AV$92,日付データ!$D$3:$D$1227) ->  | AW95: =SUMIF(日付データ!$B$3:$B$1227,AW$92,日付データ!$D$3:$D$1227) ->  | AX95: =SUMIF(日付データ!$B$3:$B$1227,AX$92,日付データ!$D$3:$D$1227) ->  | AY95: =SUMIF(日付データ!$B$3:$B$1227,AY$92,日付データ!$D$3:$D$1227) ->  | AZ95: =SUMIF(日付データ!$B$3:$B$1227,AZ$92,日付データ!$D$3:$D$1227) ->  | BA95: =SUMIF(日付データ!$B$3:$B$1227,BA$92,日付データ!$D$3:$D$1227) ->  | BB95: =SUMIF(日付データ!$B$3:$B$1227,BB$92,日付データ!$D$3:$D$1227) ->  | BC95: =SUMIF(日付データ!$B$3:$B$1227,BC$92,日付データ!$D$3:$D$1227) ->  | BD95: =SUMIF(日付データ!$B$3:$B$1227,BD$92,日付データ!$D$3:$D$1227) ->  | BE95: =SUMIF(日付データ!$B$3:$B$1227,BE$92,日付データ!$D$3:$D$1227) ->  | BF95: =SUMIF(日付データ!$B$3:$B$1227,BF$92,日付データ!$D$3:$D$1227) ->  | BG95: =SUMIF(日付データ!$B$3:$B$1227,BG$92,日付データ!$D$3:$D$1227) ->  | BH95: =SUMIF(日付データ!$B$3:$B$1227,BH$92,日付データ!$D$3:$D$1227) ->  | BI95: =SUMIF(日付データ!$B$3:$B$1227,BI$92,日付データ!$D$3:$D$1227) ->  | BJ95: =SUMIF(日付データ!$B$3:$B$1227,BJ$92,日付データ!$D$3:$D$1227) ->  | BK95: =SUMIF(日付データ!$B$3:$B$1227,BK$92,日付データ!$D$3:$D$1227) ->  | BL95: =SUMIF(日付データ!$B$3:$B$1227,BL$92,日付データ!$D$3:$D$1227) ->  | BM95: =SUMIF(日付データ!$B$3:$B$1227,BM$92,日付データ!$D$3:$D$1227) ->  | BN95: =SUMIF(日付データ!$B$3:$B$1227,BN$92,日付データ!$D$3:$D$1227) ->  | BO95: =SUMIF(日付データ!$B$3:$B$1227,BO$92,日付データ!$D$3:$D$1227) ->  | BP95: =SUMIF(日付データ!$B$3:$B$1227,BP$92,日付データ!$D$3:$D$1227) ->  | BQ95: =SUMIF(日付データ!$B$3:$B$1227,BQ$92,日付データ!$D$3:$D$1227) ->  | BR95: =SUMIF(日付データ!$B$3:$B$1227,BR$92,日付データ!$D$3:$D$1227) ->  | BS95: =SUMIF(日付データ!$B$3:$B$1227,BS$92,日付データ!$D$3:$D$1227) ->  | BT95: =SUMIF(日付データ!$B$3:$B$1227,BT$92,日付データ!$D$3:$D$1227) ->  | BU95: =SUMIF(日付データ!$B$3:$B$1227,BU$92,日付データ!$D$3:$D$1227) ->  | CP95: =SUMIF(日付データ!$B$3:$B$1227,CP$92,日付データ!$D$3:$D$1227) ->  | CQ95: =SUMIF(日付データ!$B$3:$B$1227,CQ$92,日付データ!$D$3:$D$1227) ->  | CR95: =SUMIF(日付データ!$B$3:$B$1227,CR$92,日付データ!$D$3:$D$1227) ->  | CS95: =SUMIF(日付データ!$B$3:$B$1227,CS$92,日付データ!$D$3:$D$1227) ->  | CT95: =SUMIF(日付データ!$B$3:$B$1227,CT$92,日付データ!$D$3:$D$1227) ->  | CU95: =SUMIF(日付データ!$B$3:$B$1227,CU$92,日付データ!$D$3:$D$1227) ->  | CV95: =SUMIF(日付データ!$B$3:$B$1227,CV$92,日付データ!$D$3:$D$1227) ->  | CW95: =SUMIF(日付データ!$B$3:$B$1227,CW$92,日付データ!$D$3:$D$1227) ->  | CX95: =SUMIF(日付データ!$B$3:$B$1227,CX$92,日付データ!$D$3:$D$1227) ->  | CY95: =SUMIF(日付データ!$B$3:$B$1227,CY$92,日付データ!$D$3:$D$1227) ->  | CZ95: =SUMIF(日付データ!$B$3:$B$1227,CZ$92,日付データ!$D$3:$D$1227) ->  | DA95: =SUMIF(日付データ!$B$3:$B$1227,DA$92,日付データ!$D$3:$D$1227) ->  | DB95: =SUMIF(日付データ!$B$3:$B$1227,DB$92,日付データ!$D$3:$D$1227) ->  | DC95: =SUMIF(日付データ!$B$3:$B$1227,DC$92,日付データ!$D$3:$D$1227) ->  | DD95: =SUMIF(日付データ!$B$3:$B$1227,DD$92,日付データ!$D$3:$D$1227) ->  | DE95: =SUMIF(日付データ!$B$3:$B$1227,DE$92,日付データ!$D$3:$D$1227) ->  | DF95: =SUMIF(日付データ!$B$3:$B$1227,DF$92,日付データ!$D$3:$D$1227) ->  | DG95: =SUMIF(日付データ!$B$3:$B$1227,DG$92,日付データ!$D$3:$D$1227) ->  | DH95: =SUMIF(日付データ!$B$3:$B$1227,DH$92,日付データ!$D$3:$D$1227) ->  | DI95: =SUMIF(日付データ!$B$3:$B$1227,DI$92,日付データ!$D$3:$D$1227) ->  | DJ95: =SUMIF(日付データ!$B$3:$B$1227,DJ$92,日付データ!$D$3:$D$1227) ->  | DK95: =SUMIF(日付データ!$B$3:$B$1227,DK$92,日付データ!$D$3:$D$1227) ->  | DL95: =SUMIF(日付データ!$B$3:$B$1227,DL$92,日付データ!$D$3:$D$1227) ->  | DM95: =SUMIF(日付データ!$B$3:$B$1227,DM$92,日付データ!$D$3:$D$1227) ->  | DN95: =SUMIF(日付データ!$B$3:$B$1227,DN$92,日付データ!$D$3:$D$1227) ->  | DO95: =SUMIF(日付データ!$B$3:$B$1227,DO$92,日付データ!$D$3:$D$1227) ->  | DP95: =SUMIF(日付データ!$B$3:$B$1227,DP$92,日付データ!$D$3:$D$1227) ->  | DQ95: =SUMIF(日付データ!$B$3:$B$1227,DQ$92,日付データ!$D$3:$D$1227) ->  | DR95: =SUMIF(日付データ!$B$3:$B$1227,DR$92,日付データ!$D$3:$D$1227) ->  | DS95: =SUMIF(日付データ!$B$3:$B$1227,DS$92,日付データ!$D$3:$D$1227) ->  | DT95: =SUMIF(日付データ!$B$3:$B$1227,DT$92,日付データ!$D$3:$D$1227) ->  | DU95: =SUMIF(日付データ!$B$3:$B$1227,DU$92,日付データ!$D$3:$D$1227) ->  | DV95: =SUMIF(日付データ!$B$3:$B$1227,DV$92,日付データ!$D$3:$D$1227) ->  | DW95: =SUMIF(日付データ!$B$3:$B$1227,DW$92,日付データ!$D$3:$D$1227) ->  | DX95: =SUMIF(日付データ!$B$3:$B$1227,DX$92,日付データ!$D$3:$D$1227) ->  | DY95: =SUMIF(日付データ!$B$3:$B$1227,DY$92,日付データ!$D$3:$D$1227) ->  | DZ95: =SUMIF(日付データ!$B$3:$B$1227,DZ$92,日付データ!$D$3:$D$1227) ->  | EA95: =SUMIF(日付データ!$B$3:$B$1227,EA$92,日付データ!$D$3:$D$1227) ->  | EB95: =SUMIF(日付データ!$B$3:$B$1227,EB$92,日付データ!$D$3:$D$1227) ->  | EC95: =SUMIF(日付データ!$B$3:$B$1227,EC$92,日付データ!$D$3:$D$1227) ->  | ED95: =SUMIF(日付データ!$B$3:$B$1227,ED$92,日付データ!$D$3:$D$1227) ->  | EE95: =SUMIF(日付データ!$B$3:$B$1227,EE$92,日付データ!$D$3:$D$1227) ->  | EF95: =SUMIF(日付データ!$B$3:$B$1227,EF$92,日付データ!$D$3:$D$1227) ->  | EG95: =SUMIF(日付データ!$B$3:$B$1227,EG$92,日付データ!$D$3:$D$1227) ->  | EH95: =SUMIF(日付データ!$B$3:$B$1227,EH$92,日付データ!$D$3:$D$1227) ->  | EI95: =SUMIF(日付データ!$B$3:$B$1227,EI$92,日付データ!$D$3:$D$1227) ->  | EJ95: =SUMIF(日付データ!$B$3:$B$1227,EJ$92,日付データ!$D$3:$D$1227) ->  | EK95: =SUMIF(日付データ!$B$3:$B$1227,EK$92,日付データ!$D$3:$D$1227) ->  | EL95: =SUMIF(日付データ!$B$3:$B$1227,EL$92,日付データ!$D$3:$D$1227) ->  | EM95: =SUMIF(日付データ!$B$3:$B$1227,EM$92,日付データ!$D$3:$D$1227) ->  | EN95: =SUMIF(日付データ!$B$3:$B$1227,EN$92,日付データ!$D$3:$D$1227) ->  | EO95: =SUMIF(日付データ!$B$3:$B$1227,EO$92,日付データ!$D$3:$D$1227) ->  | EP95: =SUMIF(日付データ!$B$3:$B$1227,EP$92,日付データ!$D$3:$D$1227) ->  | EQ95: =SUMIF(日付データ!$B$3:$B$1227,EQ$92,日付データ!$D$3:$D$1227) ->  | ER95: =SUMIF(日付データ!$B$3:$B$1227,ER$92,日付データ!$D$3:$D$1227) ->  | ES95: =SUMIF(日付データ!$B$3:$B$1227,ES$92,日付データ!$D$3:$D$1227) ->  | ET95: =SUMIF(日付データ!$B$3:$B$1227,ET$92,日付データ!$D$3:$D$1227) ->  | EU95: =SUMIF(日付データ!$B$3:$B$1227,EU$92,日付データ!$D$3:$D$1227) ->  | EV95: =SUMIF(日付データ!$B$3:$B$1227,EV$92,日付データ!$D$3:$D$1227) ->  | EW95: =SUMIF(日付データ!$B$3:$B$1227,EW$92,日付データ!$D$3:$D$1227) ->  | EX95: =SUMIF(日付データ!$B$3:$B$1227,EX$92,日付データ!$D$3:$D$1227) ->  | EY95: =SUMIF(日付データ!$B$3:$B$1227,EY$92,日付データ!$D$3:$D$1227) ->  | EZ95: =SUMIF(日付データ!$B$3:$B$1227,EZ$92,日付データ!$D$3:$D$1227) ->  | FA95: =SUMIF(日付データ!$B$3:$B$1227,FA$92,日付データ!$D$3:$D$1227) ->  | FB95: =SUMIF(日付データ!$B$3:$B$1227,FB$92,日付データ!$D$3:$D$1227) ->  | FC95: =SUMIF(日付データ!$B$3:$B$1227,FC$92,日付データ!$D$3:$D$1227) ->  | FD95: =SUMIF(日付データ!$B$3:$B$1227,FD$92,日付データ!$D$3:$D$1227) ->  | FE95: =SUMIF(日付データ!$B$3:$B$1227,FE$92,日付データ!$D$3:$D$1227) ->  | FF95: =SUMIF(日付データ!$B$3:$B$1227,FF$92,日付データ!$D$3:$D$1227) ->  | FG95: =SUMIF(日付データ!$B$3:$B$1227,FG$92,日付データ!$D$3:$D$1227) ->  | FH95: =SUMIF(日付データ!$B$3:$B$1227,FH$92,日付データ!$D$3:$D$1227) -> 
BO97: =IF(AT4="","",IF(AT69="","",IF(C99="該当期間なし",C99,+X99-C99+1))) ->  | FB97: =IF(AT4="","",IF(AT69="","",IF(CP99="該当期間なし",CP99,+DK99-CP99+1))) -> 
C99: =IF(AT4="","",IF(AT69="","",IF(ISERROR(VLOOKUP(1,日付データ!$G$3:$K$1227,5,0)),"該当期間なし",VLOOKUP(1,日付データ!$G$3:$K$1227,5,0)))) ->  | U99: ～ | X99: =IF(AT4="","",IF(AT69="","",+IF(C99="該当期間なし",C99,VLOOKUP(MAX(日付データ!$G$3:$G$1227),日付データ!$G$3:$K$1227,5,0)))) ->  | CP99: =IF(AT4="","",IF(AT69="","",IF(ISERROR(VLOOKUP(1,日付データ!$J$3:$K$1227,2,0)),"該当期間なし",VLOOKUP(1,日付データ!$J$3:$K$1227,2,0)))) ->  | DH99: ～ | DK99: =IF(AT4="","",IF(AT69="","",+IF(CP99="該当期間なし",CP99,VLOOKUP(MAX(日付データ!$J$3:$J$1227),日付データ!$J$3:$K$1227,2,0)))) -> 
C101: =SUMIF(日付データ!$B$3:$B$1227,C$92,日付データ!$F$3:$F$1227) ->  | D101: =SUMIF(日付データ!$B$3:$B$1227,D$92,日付データ!$F$3:$F$1227) ->  | E101: =SUMIF(日付データ!$B$3:$B$1227,E$92,日付データ!$F$3:$F$1227) ->  | F101: =SUMIF(日付データ!$B$3:$B$1227,F$92,日付データ!$F$3:$F$1227) ->  | G101: =SUMIF(日付データ!$B$3:$B$1227,G$92,日付データ!$F$3:$F$1227) ->  | H101: =SUMIF(日付データ!$B$3:$B$1227,H$92,日付データ!$F$3:$F$1227) ->  | I101: =SUMIF(日付データ!$B$3:$B$1227,I$92,日付データ!$F$3:$F$1227) ->  | J101: =SUMIF(日付データ!$B$3:$B$1227,J$92,日付データ!$F$3:$F$1227) ->  | K101: =SUMIF(日付データ!$B$3:$B$1227,K$92,日付データ!$F$3:$F$1227) ->  | L101: =SUMIF(日付データ!$B$3:$B$1227,L$92,日付データ!$F$3:$F$1227) ->  | M101: =SUMIF(日付データ!$B$3:$B$1227,M$92,日付データ!$F$3:$F$1227) ->  | N101: =SUMIF(日付データ!$B$3:$B$1227,N$92,日付データ!$F$3:$F$1227) ->  | O101: =SUMIF(日付データ!$B$3:$B$1227,O$92,日付データ!$F$3:$F$1227) ->  | P101: =SUMIF(日付データ!$B$3:$B$1227,P$92,日付データ!$F$3:$F$1227) ->  | Q101: =SUMIF(日付データ!$B$3:$B$1227,Q$92,日付データ!$F$3:$F$1227) ->  | R101: =SUMIF(日付データ!$B$3:$B$1227,R$92,日付データ!$F$3:$F$1227) ->  | S101: =SUMIF(日付データ!$B$3:$B$1227,S$92,日付データ!$F$3:$F$1227) ->  | T101: =SUMIF(日付データ!$B$3:$B$1227,T$92,日付データ!$F$3:$F$1227) ->  | U101: =SUMIF(日付データ!$B$3:$B$1227,U$92,日付データ!$F$3:$F$1227) ->  | V101: =SUMIF(日付データ!$B$3:$B$1227,V$92,日付データ!$F$3:$F$1227) ->  | W101: =SUMIF(日付データ!$B$3:$B$1227,W$92,日付データ!$F$3:$F$1227) ->  | X101: =SUMIF(日付データ!$B$3:$B$1227,X$92,日付データ!$F$3:$F$1227) ->  | Y101: =SUMIF(日付データ!$B$3:$B$1227,Y$92,日付データ!$F$3:$F$1227) ->  | Z101: =SUMIF(日付データ!$B$3:$B$1227,Z$92,日付データ!$F$3:$F$1227) ->  | AA101: =SUMIF(日付データ!$B$3:$B$1227,AA$92,日付データ!$F$3:$F$1227) ->  | AB101: =SUMIF(日付データ!$B$3:$B$1227,AB$92,日付データ!$F$3:$F$1227) ->  | AC101: =SUMIF(日付データ!$B$3:$B$1227,AC$92,日付データ!$F$3:$F$1227) ->  | AD101: =SUMIF(日付データ!$B$3:$B$1227,AD$92,日付データ!$F$3:$F$1227) ->  | AE101: =SUMIF(日付データ!$B$3:$B$1227,AE$92,日付データ!$F$3:$F$1227) ->  | AF101: =SUMIF(日付データ!$B$3:$B$1227,AF$92,日付データ!$F$3:$F$1227) ->  | AG101: =SUMIF(日付データ!$B$3:$B$1227,AG$92,日付データ!$F$3:$F$1227) ->  | AH101: =SUMIF(日付データ!$B$3:$B$1227,AH$92,日付データ!$F$3:$F$1227) ->  | AI101: =SUMIF(日付データ!$B$3:$B$1227,AI$92,日付データ!$F$3:$F$1227) ->  | AJ101: =SUMIF(日付データ!$B$3:$B$1227,AJ$92,日付データ!$F$3:$F$1227) ->  | AK101: =SUMIF(日付データ!$B$3:$B$1227,AK$92,日付データ!$F$3:$F$1227) ->  | AL101: =SUMIF(日付データ!$B$3:$B$1227,AL$92,日付データ!$F$3:$F$1227) ->  | AM101: =SUMIF(日付データ!$B$3:$B$1227,AM$92,日付データ!$F$3:$F$1227) ->  | AN101: =SUMIF(日付データ!$B$3:$B$1227,AN$92,日付データ!$F$3:$F$1227) ->  | AO101: =SUMIF(日付データ!$B$3:$B$1227,AO$92,日付データ!$F$3:$F$1227) ->  | AP101: =SUMIF(日付データ!$B$3:$B$1227,AP$92,日付データ!$F$3:$F$1227) ->  | AQ101: =SUMIF(日付データ!$B$3:$B$1227,AQ$92,日付データ!$F$3:$F$1227) ->  | AR101: =SUMIF(日付データ!$B$3:$B$1227,AR$92,日付データ!$F$3:$F$1227) ->  | AS101: =SUMIF(日付データ!$B$3:$B$1227,AS$92,日付データ!$F$3:$F$1227) ->  | AT101: =SUMIF(日付データ!$B$3:$B$1227,AT$92,日付データ!$F$3:$F$1227) ->  | AU101: =SUMIF(日付データ!$B$3:$B$1227,AU$92,日付データ!$F$3:$F$1227) ->  | AV101: =SUMIF(日付データ!$B$3:$B$1227,AV$92,日付データ!$F$3:$F$1227) ->  | AW101: =SUMIF(日付データ!$B$3:$B$1227,AW$92,日付データ!$F$3:$F$1227) ->  | AX101: =SUMIF(日付データ!$B$3:$B$1227,AX$92,日付データ!$F$3:$F$1227) ->  | AY101: =SUMIF(日付データ!$B$3:$B$1227,AY$92,日付データ!$F$3:$F$1227) ->  | AZ101: =SUMIF(日付データ!$B$3:$B$1227,AZ$92,日付データ!$F$3:$F$1227) ->  | BA101: =SUMIF(日付データ!$B$3:$B$1227,BA$92,日付データ!$F$3:$F$1227) ->  | BB101: =SUMIF(日付データ!$B$3:$B$1227,BB$92,日付データ!$F$3:$F$1227) ->  | BC101: =SUMIF(日付データ!$B$3:$B$1227,BC$92,日付データ!$F$3:$F$1227) ->  | BD101: =SUMIF(日付データ!$B$3:$B$1227,BD$92,日付データ!$F$3:$F$1227) ->  | BE101: =SUMIF(日付データ!$B$3:$B$1227,BE$92,日付データ!$F$3:$F$1227) ->  | BF101: =SUMIF(日付データ!$B$3:$B$1227,BF$92,日付データ!$F$3:$F$1227) ->  | BG101: =SUMIF(日付データ!$B$3:$B$1227,BG$92,日付データ!$F$3:$F$1227) ->  | BH101: =SUMIF(日付データ!$B$3:$B$1227,BH$92,日付データ!$F$3:$F$1227) ->  | BI101: =SUMIF(日付データ!$B$3:$B$1227,BI$92,日付データ!$F$3:$F$1227) ->  | BJ101: =SUMIF(日付データ!$B$3:$B$1227,BJ$92,日付データ!$F$3:$F$1227) ->  | BK101: =SUMIF(日付データ!$B$3:$B$1227,BK$92,日付データ!$F$3:$F$1227) ->  | BL101: =SUMIF(日付データ!$B$3:$B$1227,BL$92,日付データ!$F$3:$F$1227) ->  | BM101: =SUMIF(日付データ!$B$3:$B$1227,BM$92,日付データ!$F$3:$F$1227) ->  | BN101: =SUMIF(日付データ!$B$3:$B$1227,BN$92,日付データ!$F$3:$F$1227) ->  | BO101: =SUMIF(日付データ!$B$3:$B$1227,BO$92,日付データ!$F$3:$F$1227) ->  | BP101: =SUMIF(日付データ!$B$3:$B$1227,BP$92,日付データ!$F$3:$F$1227) ->  | BQ101: =SUMIF(日付データ!$B$3:$B$1227,BQ$92,日付データ!$F$3:$F$1227) ->  | BR101: =SUMIF(日付データ!$B$3:$B$1227,BR$92,日付データ!$F$3:$F$1227) ->  | BS101: =SUMIF(日付データ!$B$3:$B$1227,BS$92,日付データ!$F$3:$F$1227) ->  | BT101: =SUMIF(日付データ!$B$3:$B$1227,BT$92,日付データ!$F$3:$F$1227) ->  | BU101: =SUMIF(日付データ!$B$3:$B$1227,BU$92,日付データ!$F$3:$F$1227) ->  | CP101: =SUMIF(日付データ!$B$3:$B$1227,CP$92,日付データ!$I$3:$I$1227) ->  | CQ101: =SUMIF(日付データ!$B$3:$B$1227,CQ$92,日付データ!$I$3:$I$1227) ->  | CR101: =SUMIF(日付データ!$B$3:$B$1227,CR$92,日付データ!$I$3:$I$1227) ->  | CS101: =SUMIF(日付データ!$B$3:$B$1227,CS$92,日付データ!$I$3:$I$1227) ->  | CT101: =SUMIF(日付データ!$B$3:$B$1227,CT$92,日付データ!$I$3:$I$1227) ->  | CU101: =SUMIF(日付データ!$B$3:$B$1227,CU$92,日付データ!$I$3:$I$1227) ->  | CV101: =SUMIF(日付データ!$B$3:$B$1227,CV$92,日付データ!$I$3:$I$1227) ->  | CW101: =SUMIF(日付データ!$B$3:$B$1227,CW$92,日付データ!$I$3:$I$1227) ->  | CX101: =SUMIF(日付データ!$B$3:$B$1227,CX$92,日付データ!$I$3:$I$1227) ->  | CY101: =SUMIF(日付データ!$B$3:$B$1227,CY$92,日付データ!$I$3:$I$1227) ->  | CZ101: =SUMIF(日付データ!$B$3:$B$1227,CZ$92,日付データ!$I$3:$I$1227) ->  | DA101: =SUMIF(日付データ!$B$3:$B$1227,DA$92,日付データ!$I$3:$I$1227) ->  | DB101: =SUMIF(日付データ!$B$3:$B$1227,DB$92,日付データ!$I$3:$I$1227) ->  | DC101: =SUMIF(日付データ!$B$3:$B$1227,DC$92,日付データ!$I$3:$I$1227) ->  | DD101: =SUMIF(日付データ!$B$3:$B$1227,DD$92,日付データ!$I$3:$I$1227) ->  | DE101: =SUMIF(日付データ!$B$3:$B$1227,DE$92,日付データ!$I$3:$I$1227) ->  | DF101: =SUMIF(日付データ!$B$3:$B$1227,DF$92,日付データ!$I$3:$I$1227) ->  | DG101: =SUMIF(日付データ!$B$3:$B$1227,DG$92,日付データ!$I$3:$I$1227) ->  | DH101: =SUMIF(日付データ!$B$3:$B$1227,DH$92,日付データ!$I$3:$I$1227) ->  | DI101: =SUMIF(日付データ!$B$3:$B$1227,DI$92,日付データ!$I$3:$I$1227) ->  | DJ101: =SUMIF(日付データ!$B$3:$B$1227,DJ$92,日付データ!$I$3:$I$1227) ->  | DK101: =SUMIF(日付データ!$B$3:$B$1227,DK$92,日付データ!$I$3:$I$1227) ->  | DL101: =SUMIF(日付データ!$B$3:$B$1227,DL$92,日付データ!$I$3:$I$1227) ->  | DM101: =SUMIF(日付データ!$B$3:$B$1227,DM$92,日付データ!$I$3:$I$1227) ->  | DN101: =SUMIF(日付データ!$B$3:$B$1227,DN$92,日付データ!$I$3:$I$1227) ->  | DO101: =SUMIF(日付データ!$B$3:$B$1227,DO$92,日付データ!$I$3:$I$1227) ->  | DP101: =SUMIF(日付データ!$B$3:$B$1227,DP$92,日付データ!$I$3:$I$1227) ->  | DQ101: =SUMIF(日付データ!$B$3:$B$1227,DQ$92,日付データ!$I$3:$I$1227) ->  | DR101: =SUMIF(日付データ!$B$3:$B$1227,DR$92,日付データ!$I$3:$I$1227) ->  | DS101: =SUMIF(日付データ!$B$3:$B$1227,DS$92,日付データ!$I$3:$I$1227) ->  | DT101: =SUMIF(日付データ!$B$3:$B$1227,DT$92,日付データ!$I$3:$I$1227) ->  | DU101: =SUMIF(日付データ!$B$3:$B$1227,DU$92,日付データ!$I$3:$I$1227) ->  | DV101: =SUMIF(日付データ!$B$3:$B$1227,DV$92,日付データ!$I$3:$I$1227) ->  | DW101: =SUMIF(日付データ!$B$3:$B$1227,DW$92,日付データ!$I$3:$I$1227) ->  | DX101: =SUMIF(日付データ!$B$3:$B$1227,DX$92,日付データ!$I$3:$I$1227) ->  | DY101: =SUMIF(日付データ!$B$3:$B$1227,DY$92,日付データ!$I$3:$I$1227) ->  | DZ101: =SUMIF(日付データ!$B$3:$B$1227,DZ$92,日付データ!$I$3:$I$1227) ->  | EA101: =SUMIF(日付データ!$B$3:$B$1227,EA$92,日付データ!$I$3:$I$1227) ->  | EB101: =SUMIF(日付データ!$B$3:$B$1227,EB$92,日付データ!$I$3:$I$1227) ->  | EC101: =SUMIF(日付データ!$B$3:$B$1227,EC$92,日付データ!$I$3:$I$1227) ->  | ED101: =SUMIF(日付データ!$B$3:$B$1227,ED$92,日付データ!$I$3:$I$1227) ->  | EE101: =SUMIF(日付データ!$B$3:$B$1227,EE$92,日付データ!$I$3:$I$1227) ->  | EF101: =SUMIF(日付データ!$B$3:$B$1227,EF$92,日付データ!$I$3:$I$1227) ->  | EG101: =SUMIF(日付データ!$B$3:$B$1227,EG$92,日付データ!$I$3:$I$1227) ->  | EH101: =SUMIF(日付データ!$B$3:$B$1227,EH$92,日付データ!$I$3:$I$1227) ->  | EI101: =SUMIF(日付データ!$B$3:$B$1227,EI$92,日付データ!$I$3:$I$1227) ->  | EJ101: =SUMIF(日付データ!$B$3:$B$1227,EJ$92,日付データ!$I$3:$I$1227) ->  | EK101: =SUMIF(日付データ!$B$3:$B$1227,EK$92,日付データ!$I$3:$I$1227) ->  | EL101: =SUMIF(日付データ!$B$3:$B$1227,EL$92,日付データ!$I$3:$I$1227) ->  | EM101: =SUMIF(日付データ!$B$3:$B$1227,EM$92,日付データ!$I$3:$I$1227) ->  | EN101: =SUMIF(日付データ!$B$3:$B$1227,EN$92,日付データ!$I$3:$I$1227) ->  | EO101: =SUMIF(日付データ!$B$3:$B$1227,EO$92,日付データ!$I$3:$I$1227) ->  | EP101: =SUMIF(日付データ!$B$3:$B$1227,EP$92,日付データ!$I$3:$I$1227) ->  | EQ101: =SUMIF(日付データ!$B$3:$B$1227,EQ$92,日付データ!$I$3:$I$1227) ->  | ER101: =SUMIF(日付データ!$B$3:$B$1227,ER$92,日付データ!$I$3:$I$1227) ->  | ES101: =SUMIF(日付データ!$B$3:$B$1227,ES$92,日付データ!$I$3:$I$1227) ->  | ET101: =SUMIF(日付データ!$B$3:$B$1227,ET$92,日付データ!$I$3:$I$1227) ->  | EU101: =SUMIF(日付データ!$B$3:$B$1227,EU$92,日付データ!$I$3:$I$1227) ->  | EV101: =SUMIF(日付データ!$B$3:$B$1227,EV$92,日付データ!$I$3:$I$1227) ->  | EW101: =SUMIF(日付データ!$B$3:$B$1227,EW$92,日付データ!$I$3:$I$1227) ->  | EX101: =SUMIF(日付データ!$B$3:$B$1227,EX$92,日付データ!$I$3:$I$1227) ->  | EY101: =SUMIF(日付データ!$B$3:$B$1227,EY$92,日付データ!$I$3:$I$1227) ->  | EZ101: =SUMIF(日付データ!$B$3:$B$1227,EZ$92,日付データ!$I$3:$I$1227) ->  | FA101: =SUMIF(日付データ!$B$3:$B$1227,FA$92,日付データ!$I$3:$I$1227) ->  | FB101: =SUMIF(日付データ!$B$3:$B$1227,FB$92,日付データ!$I$3:$I$1227) ->  | FC101: =SUMIF(日付データ!$B$3:$B$1227,FC$92,日付データ!$I$3:$I$1227) ->  | FD101: =SUMIF(日付データ!$B$3:$B$1227,FD$92,日付データ!$I$3:$I$1227) ->  | FE101: =SUMIF(日付データ!$B$3:$B$1227,FE$92,日付データ!$I$3:$I$1227) ->  | FF101: =SUMIF(日付データ!$B$3:$B$1227,FF$92,日付データ!$I$3:$I$1227) ->  | FG101: =SUMIF(日付データ!$B$3:$B$1227,FG$92,日付データ!$I$3:$I$1227) ->  | FH101: =SUMIF(日付データ!$B$3:$B$1227,FH$92,日付データ!$I$3:$I$1227) -> 
C108: =IF(AT4="","",+AI14+1) ->  | U108: ～ | X108: =IF(AT4="","",+AI13) ->  | CK108: =IF(AT4="","",+AI8+1) ->  | DC108: ～ | DF108: =IF(AT4="","",+AI12) -> 
C113: =IF(AT4="","",+AI18+1) ->  | U113: ～ | X113: =IF(AT4="","",+AI9) ->  | CK113: =IF(AT4="","",+AI17+1) ->  | DC113: ～ | DF113: =IF(AT4="","",+AI9) -> 
C118: =IF(AT4="","",+AI17+1) ->  | U118: ～ | X118: =IF(AT4="","",+AI10) ->  | CK118: =IF(AT4="","",+AI16+1) ->  | DC118: ～ | DF118: =IF(AT4="","",+AI10) -> 
C123: =IF(AT4="","",+AI16+1) ->  | U123: ～ | X123: =IF(AT4="","",+AI11) ->  | CK123: =IF(AT4="","",+AI15+1) ->  | DC123: ～ | DF123: =IF(AT4="","",+AI11) -> 
C128: =IF(AT4="","",+AI15+1) ->  | U128: ～ | X128: =IF(AT4="","",+AI12) -> 

Sheet 日付データ (hidden)
E1: 個人 | H1: 団体
A2: NO | B2: Group | C2: Date | D2: 講習日から60日以内① | E2: 更新の申請期間② | F2: ①+② | G2: F列の累計 | H2: 更新の申請期間② | I2: ①+② | J2: F列の累計 | K2: C列と同じ
A3: 1 | B3: 1 | C3: =+シート!AT4 -> 00:00:00 | D3: =+IF(AND(C3-シート!$BV$67>=0,シート!$AI$19-C3>=0),1,0) ->  | E3: =IF(AND(C3-シート!$C$87>=0,シート!$X$87-C3>=0),1,0) ->  | F3: =IF(+D3+E3=2,1,0) ->  | G3: =+F3 ->  | H3: =IF(AND(C3-シート!$CP$87>=0,シート!$DK$87-C3>=0),1,0) ->  | I3: =IF(+D3+H3=2,1,0) ->  | J3: =+I3 ->  | K3: =+C3 -> 00:00:00
A4: =+A3+1 -> 2 | B4: 1 | C4: =+C3+1 -> 1900-01-01 | D4: =+IF(AND(C4-シート!$BV$67>=0,シート!$AI$19-C4>=0),1,0) ->  | E4: =IF(AND(C4-シート!$C$87>=0,シート!$X$87-C4>=0),1,0) ->  | F4: =IF(+D4+E4=2,1,0) ->  | G4: =+G3+F4 ->  | H4: =IF(AND(C4-シート!$CP$87>=0,シート!$DK$87-C4>=0),1,0) ->  | I4: =IF(+D4+H4=2,1,0) ->  | J4: =+J3+I4 ->  | K4: =+C4 -> 1900-01-01
A5: =+A4+1 -> 3 | B5: 1 | C5: =+C4+1 -> 1900-01-02 | D5: =+IF(AND(C5-シート!$BV$67>=0,シート!$AI$19-C5>=0),1,0) ->  | E5: =IF(AND(C5-シート!$C$87>=0,シート!$X$87-C5>=0),1,0) ->  | G5: =+G4+F5 ->  | H5: =IF(AND(C5-シート!$CP$87>=0,シート!$DK$87-C5>=0),1,0) ->  | J5: =+J4+I5 ->  | K5: 1900-01-02
A6: 4 | B6: 1 | C6: 1900-01-03 | D6: =+IF(AND(C6-シート!$BV$67>=0,シート!$AI$19-C6>=0),1,0) ->  | E6: =IF(AND(C6-シート!$C$87>=0,シート!$X$87-C6>=0),1,0) ->  | H6: =IF(AND(C6-シート!$CP$87>=0,シート!$DK$87-C6>=0),1,0) ->  | K6: 1900-01-03
A7: 5 | B7: 1 | C7: 1900-01-04 | D7: =+IF(AND(C7-シート!$BV$67>=0,シート!$AI$19-C7>=0),1,0) ->  | E7: =IF(AND(C7-シート!$C$87>=0,シート!$X$87-C7>=0),1,0) ->  | H7: =IF(AND(C7-シート!$CP$87>=0,シート!$DK$87-C7>=0),1,0) ->  | K7: 1900-01-04
A8: 6 | B8: 1 | C8: 1900-01-05 | D8: =+IF(AND(C8-シート!$BV$67>=0,シート!$AI$19-C8>=0),1,0) ->  | E8: =IF(AND(C8-シート!$C$87>=0,シート!$X$87-C8>=0),1,0) ->  | H8: =IF(AND(C8-シート!$CP$87>=0,シート!$DK$87-C8>=0),1,0) ->  | K8: 1900-01-05
A9: 7 | B9: 1 | C9: 1900-01-06 | D9: =+IF(AND(C9-シート!$BV$67>=0,シート!$AI$19-C9>=0),1,0) ->  | E9: =IF(AND(C9-シート!$C$87>=0,シート!$X$87-C9>=0),1,0) ->  | H9: =IF(AND(C9-シート!$CP$87>=0,シート!$DK$87-C9>=0),1,0) ->  | K9: 1900-01-06
A10: 8 | B10: 1 | C10: 1900-01-07 | D10: =+IF(AND(C10-シート!$BV$67>=0,シート!$AI$19-C10>=0),1,0) ->  | E10: =IF(AND(C10-シート!$C$87>=0,シート!$X$87-C10>=0),1,0) ->  | H10: =IF(AND(C10-シート!$CP$87>=0,シート!$DK$87-C10>=0),1,0) ->  | K10: 1900-01-07
A11: 9 | B11: 1 | C11: 1900-01-08 | D11: =+IF(AND(C11-シート!$BV$67>=0,シート!$AI$19-C11>=0),1,0) ->  | E11: =IF(AND(C11-シート!$C$87>=0,シート!$X$87-C11>=0),1,0) ->  | H11: =IF(AND(C11-シート!$CP$87>=0,シート!$DK$87-C11>=0),1,0) ->  | K11: 1900-01-08
A12: 10 | B12: 1 | C12: 1900-01-09 | D12: =+IF(AND(C12-シート!$BV$67>=0,シート!$AI$19-C12>=0),1,0) ->  | E12: =IF(AND(C12-シート!$C$87>=0,シート!$X$87-C12>=0),1,0) ->  | H12: =IF(AND(C12-シート!$CP$87>=0,シート!$DK$87-C12>=0),1,0) ->  | K12: 1900-01-09
A13: 11 | B13: 2 | C13: 1900-01-10 | D13: =+IF(AND(C13-シート!$BV$67>=0,シート!$AI$19-C13>=0),1,0) ->  | E13: =IF(AND(C13-シート!$C$87>=0,シート!$X$87-C13>=0),1,0) ->  | H13: =IF(AND(C13-シート!$CP$87>=0,シート!$DK$87-C13>=0),1,0) ->  | K13: 1900-01-10
A14: 12 | B14: 2 | C14: 1900-01-11 | D14: =+IF(AND(C14-シート!$BV$67>=0,シート!$AI$19-C14>=0),1,0) ->  | E14: =IF(AND(C14-シート!$C$87>=0,シート!$X$87-C14>=0),1,0) ->  | H14: =IF(AND(C14-シート!$CP$87>=0,シート!$DK$87-C14>=0),1,0) ->  | K14: 1900-01-11
A15: 13 | B15: 2 | C15: 1900-01-12 | D15: =+IF(AND(C15-シート!$BV$67>=0,シート!$AI$19-C15>=0),1,0) ->  | E15: =IF(AND(C15-シート!$C$87>=0,シート!$X$87-C15>=0),1,0) ->  | H15: =IF(AND(C15-シート!$CP$87>=0,シート!$DK$87-C15>=0),1,0) ->  | K15: 1900-01-12
A16: 14 | B16: 2 | C16: 1900-01-13 | D16: =+IF(AND(C16-シート!$BV$67>=0,シート!$AI$19-C16>=0),1,0) ->  | E16: =IF(AND(C16-シート!$C$87>=0,シート!$X$87-C16>=0),1,0) ->  | H16: =IF(AND(C16-シート!$CP$87>=0,シート!$DK$87-C16>=0),1,0) ->  | K16: 1900-01-13
A17: 15 | B17: 2 | C17: 1900-01-14 | D17: =+IF(AND(C17-シート!$BV$67>=0,シート!$AI$19-C17>=0),1,0) ->  | E17: =IF(AND(C17-シート!$C$87>=0,シート!$X$87-C17>=0),1,0) ->  | H17: =IF(AND(C17-シート!$CP$87>=0,シート!$DK$87-C17>=0),1,0) ->  | K17: 1900-01-14
A18: 16 | B18: 2 | C18: 1900-01-15 | D18: =+IF(AND(C18-シート!$BV$67>=0,シート!$AI$19-C18>=0),1,0) ->  | E18: =IF(AND(C18-シート!$C$87>=0,シート!$X$87-C18>=0),1,0) ->  | H18: =IF(AND(C18-シート!$CP$87>=0,シート!$DK$87-C18>=0),1,0) ->  | K18: 1900-01-15
A19: 17 | B19: 2 | C19: 1900-01-16 | D19: =+IF(AND(C19-シート!$BV$67>=0,シート!$AI$19-C19>=0),1,0) ->  | E19: =IF(AND(C19-シート!$C$87>=0,シート!$X$87-C19>=0),1,0) ->  | H19: =IF(AND(C19-シート!$CP$87>=0,シート!$DK$87-C19>=0),1,0) ->  | K19: 1900-01-16
A20: 18 | B20: 2 | C20: 1900-01-17 | D20: =+IF(AND(C20-シート!$BV$67>=0,シート!$AI$19-C20>=0),1,0) ->  | E20: =IF(AND(C20-シート!$C$87>=0,シート!$X$87-C20>=0),1,0) ->  | H20: =IF(AND(C20-シート!$CP$87>=0,シート!$DK$87-C20>=0),1,0) ->  | K20: 1900-01-17
A21: 19 | B21: 2 | C21: 1900-01-18 | D21: =+IF(AND(C21-シート!$BV$67>=0,シート!$AI$19-C21>=0),1,0) ->  | E21: =IF(AND(C21-シート!$C$87>=0,シート!$X$87-C21>=0),1,0) ->  | H21: =IF(AND(C21-シート!$CP$87>=0,シート!$DK$87-C21>=0),1,0) ->  | K21: 1900-01-18
A22: 20 | B22: 2 | C22: 1900-01-19 | D22: =+IF(AND(C22-シート!$BV$67>=0,シート!$AI$19-C22>=0),1,0) ->  | E22: =IF(AND(C22-シート!$C$87>=0,シート!$X$87-C22>=0),1,0) ->  | H22: =IF(AND(C22-シート!$CP$87>=0,シート!$DK$87-C22>=0),1,0) ->  | K22: 1900-01-19
A23: 21 | B23: 2 | C23: 1900-01-20 | D23: =+IF(AND(C23-シート!$BV$67>=0,シート!$AI$19-C23>=0),1,0) ->  | E23: =IF(AND(C23-シート!$C$87>=0,シート!$X$87-C23>=0),1,0) ->  | H23: =IF(AND(C23-シート!$CP$87>=0,シート!$DK$87-C23>=0),1,0) ->  | K23: 1900-01-20
A24: 22 | B24: 3 | C24: 1900-01-21 | D24: =+IF(AND(C24-シート!$BV$67>=0,シート!$AI$19-C24>=0),1,0) ->  | E24: =IF(AND(C24-シート!$C$87>=0,シート!$X$87-C24>=0),1,0) ->  | H24: =IF(AND(C24-シート!$CP$87>=0,シート!$DK$87-C24>=0),1,0) ->  | K24: 1900-01-21
A25: 23 | B25: 3 | C25: 1900-01-22 | D25: =+IF(AND(C25-シート!$BV$67>=0,シート!$AI$19-C25>=0),1,0) ->  | E25: =IF(AND(C25-シート!$C$87>=0,シート!$X$87-C25>=0),1,0) ->  | H25: =IF(AND(C25-シート!$CP$87>=0,シート!$DK$87-C25>=0),1,0) ->  | K25: 1900-01-22
A26: 24 | B26: 3 | C26: 1900-01-23 | D26: =+IF(AND(C26-シート!$BV$67>=0,シート!$AI$19-C26>=0),1,0) ->  | E26: =IF(AND(C26-シート!$C$87>=0,シート!$X$87-C26>=0),1,0) ->  | H26: =IF(AND(C26-シート!$CP$87>=0,シート!$DK$87-C26>=0),1,0) ->  | K26: 1900-01-23
A27: 25 | B27: 3 | C27: 1900-01-24 | D27: =+IF(AND(C27-シート!$BV$67>=0,シート!$AI$19-C27>=0),1,0) ->  | E27: =IF(AND(C27-シート!$C$87>=0,シート!$X$87-C27>=0),1,0) ->  | H27: =IF(AND(C27-シート!$CP$87>=0,シート!$DK$87-C27>=0),1,0) ->  | K27: 1900-01-24
A28: 26 | B28: 3 | C28: 1900-01-25 | D28: =+IF(AND(C28-シート!$BV$67>=0,シート!$AI$19-C28>=0),1,0) ->  | E28: =IF(AND(C28-シート!$C$87>=0,シート!$X$87-C28>=0),1,0) ->  | H28: =IF(AND(C28-シート!$CP$87>=0,シート!$DK$87-C28>=0),1,0) ->  | K28: 1900-01-25
A29: 27 | B29: 3 | C29: 1900-01-26 | D29: =+IF(AND(C29-シート!$BV$67>=0,シート!$AI$19-C29>=0),1,0) ->  | E29: =IF(AND(C29-シート!$C$87>=0,シート!$X$87-C29>=0),1,0) ->  | H29: =IF(AND(C29-シート!$CP$87>=0,シート!$DK$87-C29>=0),1,0) ->  | K29: 1900-01-26
A30: 28 | B30: 3 | C30: 1900-01-27 | D30: =+IF(AND(C30-シート!$BV$67>=0,シート!$AI$19-C30>=0),1,0) ->  | E30: =IF(AND(C30-シート!$C$87>=0,シート!$X$87-C30>=0),1,0) ->  | H30: =IF(AND(C30-シート!$CP$87>=0,シート!$DK$87-C30>=0),1,0) ->  | K30: 1900-01-27
A31: 29 | B31: 3 | C31: 1900-01-28 | D31: =+IF(AND(C31-シート!$BV$67>=0,シート!$AI$19-C31>=0),1,0) ->  | E31: =IF(AND(C31-シート!$C$87>=0,シート!$X$87-C31>=0),1,0) ->  | H31: =IF(AND(C31-シート!$CP$87>=0,シート!$DK$87-C31>=0),1,0) ->  | K31: 1900-01-28
A32: 30 | B32: 3 | C32: 1900-01-29 | D32: =+IF(AND(C32-シート!$BV$67>=0,シート!$AI$19-C32>=0),1,0) ->  | E32: =IF(AND(C32-シート!$C$87>=0,シート!$X$87-C32>=0),1,0) ->  | H32: =IF(AND(C32-シート!$CP$87>=0,シート!$DK$87-C32>=0),1,0) ->  | K32: 1900-01-29
A33: 31 | B33: 3 | C33: 1900-01-30 | D33: =+IF(AND(C33-シート!$BV$67>=0,シート!$AI$19-C33>=0),1,0) ->  | E33: =IF(AND(C33-シート!$C$87>=0,シート!$X$87-C33>=0),1,0) ->  | H33: =IF(AND(C33-シート!$CP$87>=0,シート!$DK$87-C33>=0),1,0) ->  | K33: 1900-01-30
A34: 32 | B34: 4 | C34: 1900-01-31 | D34: =+IF(AND(C34-シート!$BV$67>=0,シート!$AI$19-C34>=0),1,0) ->  | E34: =IF(AND(C34-シート!$C$87>=0,シート!$X$87-C34>=0),1,0) ->  | H34: =IF(AND(C34-シート!$CP$87>=0,シート!$DK$87-C34>=0),1,0) ->  | K34: 1900-01-31
A35: 33 | B35: 4 | C35: 1900-02-01 | D35: =+IF(AND(C35-シート!$BV$67>=0,シート!$AI$19-C35>=0),1,0) ->  | E35: =IF(AND(C35-シート!$C$87>=0,シート!$X$87-C35>=0),1,0) ->  | H35: =IF(AND(C35-シート!$CP$87>=0,シート!$DK$87-C35>=0),1,0) ->  | K35: 1900-02-01
A36: 34 | B36: 4 | C36: 1900-02-02 | D36: =+IF(AND(C36-シート!$BV$67>=0,シート!$AI$19-C36>=0),1,0) ->  | E36: =IF(AND(C36-シート!$C$87>=0,シート!$X$87-C36>=0),1,0) ->  | H36: =IF(AND(C36-シート!$CP$87>=0,シート!$DK$87-C36>=0),1,0) ->  | K36: 1900-02-02
A37: 35 | B37: 4 | C37: 1900-02-03 | D37: =+IF(AND(C37-シート!$BV$67>=0,シート!$AI$19-C37>=0),1,0) ->  | E37: =IF(AND(C37-シート!$C$87>=0,シート!$X$87-C37>=0),1,0) ->  | H37: =IF(AND(C37-シート!$CP$87>=0,シート!$DK$87-C37>=0),1,0) ->  | K37: 1900-02-03
A38: 36 | B38: 4 | C38: 1900-02-04 | D38: =+IF(AND(C38-シート!$BV$67>=0,シート!$AI$19-C38>=0),1,0) ->  | E38: =IF(AND(C38-シート!$C$87>=0,シート!$X$87-C38>=0),1,0) ->  | H38: =IF(AND(C38-シート!$CP$87>=0,シート!$DK$87-C38>=0),1,0) ->  | K38: 1900-02-04
A39: 37 | B39: 4 | C39: 1900-02-05 | D39: =+IF(AND(C39-シート!$BV$67>=0,シート!$AI$19-C39>=0),1,0) ->  | E39: =IF(AND(C39-シート!$C$87>=0,シート!$X$87-C39>=0),1,0) ->  | H39: =IF(AND(C39-シート!$CP$87>=0,シート!$DK$87-C39>=0),1,0) ->  | K39: 1900-02-05
A40: 38 | B40: 4 | C40: 1900-02-06 | D40: =+IF(AND(C40-シート!$BV$67>=0,シート!$AI$19-C40>=0),1,0) ->  | E40: =IF(AND(C40-シート!$C$87>=0,シート!$X$87-C40>=0),1,0) ->  | H40: =IF(AND(C40-シート!$CP$87>=0,シート!$DK$87-C40>=0),1,0) ->  | K40: 1900-02-06
A41: 39 | B41: 4 | C41: 1900-02-07 | D41: =+IF(AND(C41-シート!$BV$67>=0,シート!$AI$19-C41>=0),1,0) ->  | E41: =IF(AND(C41-シート!$C$87>=0,シート!$X$87-C41>=0),1,0) ->  | H41: =IF(AND(C41-シート!$CP$87>=0,シート!$DK$87-C41>=0),1,0) ->  | K41: 1900-02-07
A42: 40 | B42: 4 | C42: 1900-02-08 | D42: =+IF(AND(C42-シート!$BV$67>=0,シート!$AI$19-C42>=0),1,0) ->  | E42: =IF(AND(C42-シート!$C$87>=0,シート!$X$87-C42>=0),1,0) ->  | H42: =IF(AND(C42-シート!$CP$87>=0,シート!$DK$87-C42>=0),1,0) ->  | K42: 1900-02-08
A43: 41 | B43: 4 | C43: 1900-02-09 | D43: =+IF(AND(C43-シート!$BV$67>=0,シート!$AI$19-C43>=0),1,0) ->  | E43: =IF(AND(C43-シート!$C$87>=0,シート!$X$87-C43>=0),1,0) ->  | H43: =IF(AND(C43-シート!$CP$87>=0,シート!$DK$87-C43>=0),1,0) ->  | K43: 1900-02-09
A44: 42 | B44: 5 | C44: 1900-02-10 | D44: =+IF(AND(C44-シート!$BV$67>=0,シート!$AI$19-C44>=0),1,0) ->  | E44: =IF(AND(C44-シート!$C$87>=0,シート!$X$87-C44>=0),1,0) ->  | H44: =IF(AND(C44-シート!$CP$87>=0,シート!$DK$87-C44>=0),1,0) ->  | K44: 1900-02-10
A45: 43 | B45: 5 | C45: 1900-02-11 | D45: =+IF(AND(C45-シート!$BV$67>=0,シート!$AI$19-C45>=0),1,0) ->  | E45: =IF(AND(C45-シート!$C$87>=0,シート!$X$87-C45>=0),1,0) ->  | H45: =IF(AND(C45-シート!$CP$87>=0,シート!$DK$87-C45>=0),1,0) ->  | K45: 1900-02-11
A46: 44 | B46: 5 | C46: 1900-02-12 | D46: =+IF(AND(C46-シート!$BV$67>=0,シート!$AI$19-C46>=0),1,0) ->  | E46: =IF(AND(C46-シート!$C$87>=0,シート!$X$87-C46>=0),1,0) ->  | H46: =IF(AND(C46-シート!$CP$87>=0,シート!$DK$87-C46>=0),1,0) ->  | K46: 1900-02-12
A47: 45 | B47: 5 | C47: 1900-02-13 | D47: =+IF(AND(C47-シート!$BV$67>=0,シート!$AI$19-C47>=0),1,0) ->  | E47: =IF(AND(C47-シート!$C$87>=0,シート!$X$87-C47>=0),1,0) ->  | H47: =IF(AND(C47-シート!$CP$87>=0,シート!$DK$87-C47>=0),1,0) ->  | K47: 1900-02-13
A48: 46 | B48: 5 | C48: 1900-02-14 | D48: =+IF(AND(C48-シート!$BV$67>=0,シート!$AI$19-C48>=0),1,0) ->  | E48: =IF(AND(C48-シート!$C$87>=0,シート!$X$87-C48>=0),1,0) ->  | H48: =IF(AND(C48-シート!$CP$87>=0,シート!$DK$87-C48>=0),1,0) ->  | K48: 1900-02-14
A49: 47 | B49: 5 | C49: 1900-02-15 | D49: =+IF(AND(C49-シート!$BV$67>=0,シート!$AI$19-C49>=0),1,0) ->  | E49: =IF(AND(C49-シート!$C$87>=0,シート!$X$87-C49>=0),1,0) ->  | H49: =IF(AND(C49-シート!$CP$87>=0,シート!$DK$87-C49>=0),1,0) ->  | K49: 1900-02-15
A50: 48 | B50: 5 | C50: 1900-02-16 | D50: =+IF(AND(C50-シート!$BV$67>=0,シート!$AI$19-C50>=0),1,0) ->  | E50: =IF(AND(C50-シート!$C$87>=0,シート!$X$87-C50>=0),1,0) ->  | H50: =IF(AND(C50-シート!$CP$87>=0,シート!$DK$87-C50>=0),1,0) ->  | K50: 1900-02-16
A51: 49 | B51: 5 | C51: 1900-02-17 | D51: =+IF(AND(C51-シート!$BV$67>=0,シート!$AI$19-C51>=0),1,0) ->  | E51: =IF(AND(C51-シート!$C$87>=0,シート!$X$87-C51>=0),1,0) ->  | H51: =IF(AND(C51-シート!$CP$87>=0,シート!$DK$87-C51>=0),1,0) ->  | K51: 1900-02-17
A52: 50 | B52: 5 | C52: 1900-02-18 | D52: =+IF(AND(C52-シート!$BV$67>=0,シート!$AI$19-C52>=0),1,0) ->  | E52: =IF(AND(C52-シート!$C$87>=0,シート!$X$87-C52>=0),1,0) ->  | H52: =IF(AND(C52-シート!$CP$87>=0,シート!$DK$87-C52>=0),1,0) ->  | K52: 1900-02-18
A53: 51 | B53: 5 | C53: 1900-02-19 | D53: =+IF(AND(C53-シート!$BV$67>=0,シート!$AI$19-C53>=0),1,0) ->  | E53: =IF(AND(C53-シート!$C$87>=0,シート!$X$87-C53>=0),1,0) ->  | H53: =IF(AND(C53-シート!$CP$87>=0,シート!$DK$87-C53>=0),1,0) ->  | K53: 1900-02-19
A54: 52 | B54: 6 | C54: 1900-02-20 | D54: =+IF(AND(C54-シート!$BV$67>=0,シート!$AI$19-C54>=0),1,0) ->  | E54: =IF(AND(C54-シート!$C$87>=0,シート!$X$87-C54>=0),1,0) ->  | H54: =IF(AND(C54-シート!$CP$87>=0,シート!$DK$87-C54>=0),1,0) ->  | K54: 1900-02-20
A55: 53 | B55: 6 | C55: 1900-02-21 | D55: =+IF(AND(C55-シート!$BV$67>=0,シート!$AI$19-C55>=0),1,0) ->  | E55: =IF(AND(C55-シート!$C$87>=0,シート!$X$87-C55>=0),1,0) ->  | H55: =IF(AND(C55-シート!$CP$87>=0,シート!$DK$87-C55>=0),1,0) ->  | K55: 1900-02-21
A56: 54 | B56: 6 | C56: 1900-02-22 | D56: =+IF(AND(C56-シート!$BV$67>=0,シート!$AI$19-C56>=0),1,0) ->  | E56: =IF(AND(C56-シート!$C$87>=0,シート!$X$87-C56>=0),1,0) ->  | H56: =IF(AND(C56-シート!$CP$87>=0,シート!$DK$87-C56>=0),1,0) ->  | K56: 1900-02-22
A57: 55 | B57: 6 | C57: 1900-02-23 | D57: =+IF(AND(C57-シート!$BV$67>=0,シート!$AI$19-C57>=0),1,0) ->  | E57: =IF(AND(C57-シート!$C$87>=0,シート!$X$87-C57>=0),1,0) ->  | H57: =IF(AND(C57-シート!$CP$87>=0,シート!$DK$87-C57>=0),1,0) ->  | K57: 1900-02-23
A58: 56 | B58: 6 | C58: 1900-02-24 | D58: =+IF(AND(C58-シート!$BV$67>=0,シート!$AI$19-C58>=0),1,0) ->  | E58: =IF(AND(C58-シート!$C$87>=0,シート!$X$87-C58>=0),1,0) ->  | H58: =IF(AND(C58-シート!$CP$87>=0,シート!$DK$87-C58>=0),1,0) ->  | K58: 1900-02-24
A59: 57 | B59: 6 | C59: 1900-02-25 | D59: =+IF(AND(C59-シート!$BV$67>=0,シート!$AI$19-C59>=0),1,0) ->  | E59: =IF(AND(C59-シート!$C$87>=0,シート!$X$87-C59>=0),1,0) ->  | H59: =IF(AND(C59-シート!$CP$87>=0,シート!$DK$87-C59>=0),1,0) ->  | K59: 1900-02-25
A60: 58 | B60: 6 | C60: 1900-02-26 | D60: =+IF(AND(C60-シート!$BV$67>=0,シート!$AI$19-C60>=0),1,0) ->  | E60: =IF(AND(C60-シート!$C$87>=0,シート!$X$87-C60>=0),1,0) ->  | H60: =IF(AND(C60-シート!$CP$87>=0,シート!$DK$87-C60>=0),1,0) ->  | K60: 1900-02-26
A61: 59 | B61: 6 | C61: 1900-02-27 | D61: =+IF(AND(C61-シート!$BV$67>=0,シート!$AI$19-C61>=0),1,0) ->  | E61: =IF(AND(C61-シート!$C$87>=0,シート!$X$87-C61>=0),1,0) ->  | H61: =IF(AND(C61-シート!$CP$87>=0,シート!$DK$87-C61>=0),1,0) ->  | K61: 1900-02-27
A62: 60 | B62: 6 | C62: 1900-02-28 | D62: =+IF(AND(C62-シート!$BV$67>=0,シート!$AI$19-C62>=0),1,0) ->  | E62: =IF(AND(C62-シート!$C$87>=0,シート!$X$87-C62>=0),1,0) ->  | H62: =IF(AND(C62-シート!$CP$87>=0,シート!$DK$87-C62>=0),1,0) ->  | K62: 1900-02-28
A63: 61 | B63: 6 | C63: 60 | D63: =+IF(AND(C63-シート!$BV$67>=0,シート!$AI$19-C63>=0),1,0) ->  | E63: =IF(AND(C63-シート!$C$87>=0,シート!$X$87-C63>=0),1,0) ->  | H63: =IF(AND(C63-シート!$CP$87>=0,シート!$DK$87-C63>=0),1,0) ->  | K63: 60
A64: 62 | B64: 7 | C64: 1900-03-01 | D64: =+IF(AND(C64-シート!$BV$67>=0,シート!$AI$19-C64>=0),1,0) ->  | E64: =IF(AND(C64-シート!$C$87>=0,シート!$X$87-C64>=0),1,0) ->  | H64: =IF(AND(C64-シート!$CP$87>=0,シート!$DK$87-C64>=0),1,0) ->  | K64: 1900-03-01
A65: 63 | B65: 7 | C65: 1900-03-02 | D65: =+IF(AND(C65-シート!$BV$67>=0,シート!$AI$19-C65>=0),1,0) ->  | E65: =IF(AND(C65-シート!$C$87>=0,シート!$X$87-C65>=0),1,0) ->  | H65: =IF(AND(C65-シート!$CP$87>=0,シート!$DK$87-C65>=0),1,0) ->  | K65: 1900-03-02
A66: 64 | B66: 7 | C66: 1900-03-03 | D66: =+IF(AND(C66-シート!$BV$67>=0,シート!$AI$19-C66>=0),1,0) ->  | E66: =IF(AND(C66-シート!$C$87>=0,シート!$X$87-C66>=0),1,0) ->  | H66: =IF(AND(C66-シート!$CP$87>=0,シート!$DK$87-C66>=0),1,0) ->  | K66: 1900-03-03
A67: 65 | B67: 7 | C67: 1900-03-04 | D67: =+IF(AND(C67-シート!$BV$67>=0,シート!$AI$19-C67>=0),1,0) ->  | E67: =IF(AND(C67-シート!$C$87>=0,シート!$X$87-C67>=0),1,0) ->  | H67: =IF(AND(C67-シート!$CP$87>=0,シート!$DK$87-C67>=0),1,0) ->  | K67: 1900-03-04
A68: 66 | B68: 7 | C68: 1900-03-05 | D68: =+IF(AND(C68-シート!$BV$67>=0,シート!$AI$19-C68>=0),1,0) ->  | E68: =IF(AND(C68-シート!$C$87>=0,シート!$X$87-C68>=0),1,0) ->  | F68: =IF(+D68+E68=2,1,0) ->  | H68: =IF(AND(C68-シート!$CP$87>=0,シート!$DK$87-C68>=0),1,0) ->  | I68: =IF(+D68+H68=2,1,0) ->  | K68: =+C68 -> 1900-03-05
A69: =+A68+1 -> 67 | B69: 7 | C69: =+C68+1 -> 1900-03-06 | D69: =+IF(AND(C69-シート!$BV$67>=0,シート!$AI$19-C69>=0),1,0) ->  | E69: =IF(AND(C69-シート!$C$87>=0,シート!$X$87-C69>=0),1,0) ->  | G69: =+G68+F69 ->  | H69: =IF(AND(C69-シート!$CP$87>=0,シート!$DK$87-C69>=0),1,0) ->  | J69: =+J68+I69 ->  | K69: 1900-03-06
A70: 68 | B70: 7 | C70: 1900-03-07 | D70: =+IF(AND(C70-シート!$BV$67>=0,シート!$AI$19-C70>=0),1,0) ->  | E70: =IF(AND(C70-シート!$C$87>=0,シート!$X$87-C70>=0),1,0) ->  | H70: =IF(AND(C70-シート!$CP$87>=0,シート!$DK$87-C70>=0),1,0) ->  | K70: 1900-03-07
A71: 69 | B71: 7 | C71: 1900-03-08 | D71: =+IF(AND(C71-シート!$BV$67>=0,シート!$AI$19-C71>=0),1,0) ->  | E71: =IF(AND(C71-シート!$C$87>=0,シート!$X$87-C71>=0),1,0) ->  | H71: =IF(AND(C71-シート!$CP$87>=0,シート!$DK$87-C71>=0),1,0) ->  | K71: 1900-03-08
A72: 70 | B72: 7 | C72: 1900-03-09 | D72: =+IF(AND(C72-シート!$BV$67>=0,シート!$AI$19-C72>=0),1,0) ->  | E72: =IF(AND(C72-シート!$C$87>=0,シート!$X$87-C72>=0),1,0) ->  | H72: =IF(AND(C72-シート!$CP$87>=0,シート!$DK$87-C72>=0),1,0) ->  | K72: 1900-03-09
A73: 71 | B73: 7 | C73: 1900-03-10 | D73: =+IF(AND(C73-シート!$BV$67>=0,シート!$AI$19-C73>=0),1,0) ->  | E73: =IF(AND(C73-シート!$C$87>=0,シート!$X$87-C73>=0),1,0) ->  | H73: =IF(AND(C73-シート!$CP$87>=0,シート!$DK$87-C73>=0),1,0) ->  | K73: 1900-03-10
A74: 72 | B74: 8 | C74: 1900-03-11 | D74: =+IF(AND(C74-シート!$BV$67>=0,シート!$AI$19-C74>=0),1,0) ->  | E74: =IF(AND(C74-シート!$C$87>=0,シート!$X$87-C74>=0),1,0) ->  | H74: =IF(AND(C74-シート!$CP$87>=0,シート!$DK$87-C74>=0),1,0) ->  | K74: 1900-03-11
A75: 73 | B75: 8 | C75: 1900-03-12 | D75: =+IF(AND(C75-シート!$BV$67>=0,シート!$AI$19-C75>=0),1,0) ->  | E75: =IF(AND(C75-シート!$C$87>=0,シート!$X$87-C75>=0),1,0) ->  | H75: =IF(AND(C75-シート!$CP$87>=0,シート!$DK$87-C75>=0),1,0) ->  | K75: 1900-03-12
A76: 74 | B76: 8 | C76: 1900-03-13 | D76: =+IF(AND(C76-シート!$BV$67>=0,シート!$AI$19-C76>=0),1,0) ->  | E76: =IF(AND(C76-シート!$C$87>=0,シート!$X$87-C76>=0),1,0) ->  | H76: =IF(AND(C76-シート!$CP$87>=0,シート!$DK$87-C76>=0),1,0) ->  | K76: 1900-03-13
A77: 75 | B77: 8 | C77: 1900-03-14 | D77: =+IF(AND(C77-シート!$BV$67>=0,シート!$AI$19-C77>=0),1,0) ->  | E77: =IF(AND(C77-シート!$C$87>=0,シート!$X$87-C77>=0),1,0) ->  | H77: =IF(AND(C77-シート!$CP$87>=0,シート!$DK$87-C77>=0),1,0) ->  | K77: 1900-03-14
A78: 76 | B78: 8 | C78: 1900-03-15 | D78: =+IF(AND(C78-シート!$BV$67>=0,シート!$AI$19-C78>=0),1,0) ->  | E78: =IF(AND(C78-シート!$C$87>=0,シート!$X$87-C78>=0),1,0) ->  | H78: =IF(AND(C78-シート!$CP$87>=0,シート!$DK$87-C78>=0),1,0) ->  | K78: 1900-03-15
A79: 77 | B79: 8 | C79: 1900-03-16 | D79: =+IF(AND(C79-シート!$BV$67>=0,シート!$AI$19-C79>=0),1,0) ->  | E79: =IF(AND(C79-シート!$C$87>=0,シート!$X$87-C79>=0),1,0) ->  | H79: =IF(AND(C79-シート!$CP$87>=0,シート!$DK$87-C79>=0),1,0) ->  | K79: 1900-03-16
A80: 78 | B80: 8 | C80: 1900-03-17 | D80: =+IF(AND(C80-シート!$BV$67>=0,シート!$AI$19-C80>=0),1,0) ->  | E80: =IF(AND(C80-シート!$C$87>=0,シート!$X$87-C80>=0),1,0) ->  | H80: =IF(AND(C80-シート!$CP$87>=0,シート!$DK$87-C80>=0),1,0) ->  | K80: 1900-03-17
A81: 79 | B81: 8 | C81: 1900-03-18 | D81: =+IF(AND(C81-シート!$BV$67>=0,シート!$AI$19-C81>=0),1,0) ->  | E81: =IF(AND(C81-シート!$C$87>=0,シート!$X$87-C81>=0),1,0) ->  | H81: =IF(AND(C81-シート!$CP$87>=0,シート!$DK$87-C81>=0),1,0) ->  | K81: 1900-03-18
A82: 80 | B82: 8 | C82: 1900-03-19 | D82: =+IF(AND(C82-シート!$BV$67>=0,シート!$AI$19-C82>=0),1,0) ->  | E82: =IF(AND(C82-シート!$C$87>=0,シート!$X$87-C82>=0),1,0) ->  | H82: =IF(AND(C82-シート!$CP$87>=0,シート!$DK$87-C82>=0),1,0) ->  | K82: 1900-03-19
A83: 81 | B83: 8 | C83: 1900-03-20 | D83: =+IF(AND(C83-シート!$BV$67>=0,シート!$AI$19-C83>=0),1,0) ->  | E83: =IF(AND(C83-シート!$C$87>=0,シート!$X$87-C83>=0),1,0) ->  | H83: =IF(AND(C83-シート!$CP$87>=0,シート!$DK$87-C83>=0),1,0) ->  | K83: 1900-03-20
A84: 82 | B84: 8 | C84: 1900-03-21 | D84: =+IF(AND(C84-シート!$BV$67>=0,シート!$AI$19-C84>=0),1,0) ->  | E84: =IF(AND(C84-シート!$C$87>=0,シート!$X$87-C84>=0),1,0) ->  | H84: =IF(AND(C84-シート!$CP$87>=0,シート!$DK$87-C84>=0),1,0) ->  | K84: 1900-03-21
A85: 83 | B85: 9 | C85: 1900-03-22 | D85: =+IF(AND(C85-シート!$BV$67>=0,シート!$AI$19-C85>=0),1,0) ->  | E85: =IF(AND(C85-シート!$C$87>=0,シート!$X$87-C85>=0),1,0) ->  | H85: =IF(AND(C85-シート!$CP$87>=0,シート!$DK$87-C85>=0),1,0) ->  | K85: 1900-03-22
A86: 84 | B86: 9 | C86: 1900-03-23 | D86: =+IF(AND(C86-シート!$BV$67>=0,シート!$AI$19-C86>=0),1,0) ->  | E86: =IF(AND(C86-シート!$C$87>=0,シート!$X$87-C86>=0),1,0) ->  | H86: =IF(AND(C86-シート!$CP$87>=0,シート!$DK$87-C86>=0),1,0) ->  | K86: 1900-03-23
A87: 85 | B87: 9 | C87: 1900-03-24 | D87: =+IF(AND(C87-シート!$BV$67>=0,シート!$AI$19-C87>=0),1,0) ->  | E87: =IF(AND(C87-シート!$C$87>=0,シート!$X$87-C87>=0),1,0) ->  | H87: =IF(AND(C87-シート!$CP$87>=0,シート!$DK$87-C87>=0),1,0) ->  | K87: 1900-03-24
A88: 86 | B88: 9 | C88: 1900-03-25 | D88: =+IF(AND(C88-シート!$BV$67>=0,シート!$AI$19-C88>=0),1,0) ->  | E88: =IF(AND(C88-シート!$C$87>=0,シート!$X$87-C88>=0),1,0) ->  | H88: =IF(AND(C88-シート!$CP$87>=0,シート!$DK$87-C88>=0),1,0) ->  | K88: 1900-03-25
A89: 87 | B89: 9 | C89: 1900-03-26 | D89: =+IF(AND(C89-シート!$BV$67>=0,シート!$AI$19-C89>=0),1,0) ->  | E89: =IF(AND(C89-シート!$C$87>=0,シート!$X$87-C89>=0),1,0) ->  | H89: =IF(AND(C89-シート!$CP$87>=0,シート!$DK$87-C89>=0),1,0) ->  | K89: 1900-03-26
A90: 88 | B90: 9 | C90: 1900-03-27 | D90: =+IF(AND(C90-シート!$BV$67>=0,シート!$AI$19-C90>=0),1,0) ->  | E90: =IF(AND(C90-シート!$C$87>=0,シート!$X$87-C90>=0),1,0) ->  | H90: =IF(AND(C90-シート!$CP$87>=0,シート!$DK$87-C90>=0),1,0) ->  | K90: 1900-03-27
A91: 89 | B91: 9 | C91: 1900-03-28 | D91: =+IF(AND(C91-シート!$BV$67>=0,シート!$AI$19-C91>=0),1,0) ->  | E91: =IF(AND(C91-シート!$C$87>=0,シート!$X$87-C91>=0),1,0) ->  | H91: =IF(AND(C91-シート!$CP$87>=0,シート!$DK$87-C91>=0),1,0) ->  | K91: 1900-03-28
A92: 90 | B92: 9 | C92: 1900-03-29 | D92: =+IF(AND(C92-シート!$BV$67>=0,シート!$AI$19-C92>=0),1,0) ->  | E92: =IF(AND(C92-シート!$C$87>=0,シート!$X$87-C92>=0),1,0) ->  | H92: =IF(AND(C92-シート!$CP$87>=0,シート!$DK$87-C92>=0),1,0) ->  | K92: 1900-03-29
A93: 91 | B93: 9 | C93: 1900-03-30 | D93: =+IF(AND(C93-シート!$BV$67>=0,シート!$AI$19-C93>=0),1,0) ->  | E93: =IF(AND(C93-シート!$C$87>=0,シート!$X$87-C93>=0),1,0) ->  | H93: =IF(AND(C93-シート!$CP$87>=0,シート!$DK$87-C93>=0),1,0) ->  | K93: 1900-03-30
A94: 92 | B94: 9 | C94: 1900-03-31 | D94: =+IF(AND(C94-シート!$BV$67>=0,シート!$AI$19-C94>=0),1,0) ->  | E94: =IF(AND(C94-シート!$C$87>=0,シート!$X$87-C94>=0),1,0) ->  | H94: =IF(AND(C94-シート!$CP$87>=0,シート!$DK$87-C94>=0),1,0) ->  | K94: 1900-03-31
A95: 93 | B95: 10 | C95: 1900-04-01 | D95: =+IF(AND(C95-シート!$BV$67>=0,シート!$AI$19-C95>=0),1,0) ->  | E95: =IF(AND(C95-シート!$C$87>=0,シート!$X$87-C95>=0),1,0) ->  | H95: =IF(AND(C95-シート!$CP$87>=0,シート!$DK$87-C95>=0),1,0) ->  | K95: 1900-04-01
A96: 94 | B96: 10 | C96: 1900-04-02 | D96: =+IF(AND(C96-シート!$BV$67>=0,シート!$AI$19-C96>=0),1,0) ->  | E96: =IF(AND(C96-シート!$C$87>=0,シート!$X$87-C96>=0),1,0) ->  | H96: =IF(AND(C96-シート!$CP$87>=0,シート!$DK$87-C96>=0),1,0) ->  | K96: 1900-04-02
A97: 95 | B97: 10 | C97: 1900-04-03 | D97: =+IF(AND(C97-シート!$BV$67>=0,シート!$AI$19-C97>=0),1,0) ->  | E97: =IF(AND(C97-シート!$C$87>=0,シート!$X$87-C97>=0),1,0) ->  | H97: =IF(AND(C97-シート!$CP$87>=0,シート!$DK$87-C97>=0),1,0) ->  | K97: 1900-04-03
A98: 96 | B98: 10 | C98: 1900-04-04 | D98: =+IF(AND(C98-シート!$BV$67>=0,シート!$AI$19-C98>=0),1,0) ->  | E98: =IF(AND(C98-シート!$C$87>=0,シート!$X$87-C98>=0),1,0) ->  | H98: =IF(AND(C98-シート!$CP$87>=0,シート!$DK$87-C98>=0),1,0) ->  | K98: 1900-04-04
A99: 97 | B99: 10 | C99: 1900-04-05 | D99: =+IF(AND(C99-シート!$BV$67>=0,シート!$AI$19-C99>=0),1,0) ->  | E99: =IF(AND(C99-シート!$C$87>=0,シート!$X$87-C99>=0),1,0) ->  | H99: =IF(AND(C99-シート!$CP$87>=0,シート!$DK$87-C99>=0),1,0) ->  | K99: 1900-04-05
A100: 98 | B100: 10 | C100: 1900-04-06 | D100: =+IF(AND(C100-シート!$BV$67>=0,シート!$AI$19-C100>=0),1,0) ->  | E100: =IF(AND(C100-シート!$C$87>=0,シート!$X$87-C100>=0),1,0) ->  | H100: =IF(AND(C100-シート!$CP$87>=0,シート!$DK$87-C100>=0),1,0) ->  | K100: 1900-04-06
A101: 99 | B101: 10 | C101: 1900-04-07 | D101: =+IF(AND(C101-シート!$BV$67>=0,シート!$AI$19-C101>=0),1,0) ->  | E101: =IF(AND(C101-シート!$C$87>=0,シート!$X$87-C101>=0),1,0) ->  | H101: =IF(AND(C101-シート!$CP$87>=0,シート!$DK$87-C101>=0),1,0) ->  | K101: 1900-04-07
A102: 100 | B102: 10 | C102: 1900-04-08 | D102: =+IF(AND(C102-シート!$BV$67>=0,シート!$AI$19-C102>=0),1,0) ->  | E102: =IF(AND(C102-シート!$C$87>=0,シート!$X$87-C102>=0),1,0) ->  | H102: =IF(AND(C102-シート!$CP$87>=0,シート!$DK$87-C102>=0),1,0) ->  | K102: 1900-04-08
A103: 101 | B103: 10 | C103: 1900-04-09 | D103: =+IF(AND(C103-シート!$BV$67>=0,シート!$AI$19-C103>=0),1,0) ->  | E103: =IF(AND(C103-シート!$C$87>=0,シート!$X$87-C103>=0),1,0) ->  | H103: =IF(AND(C103-シート!$CP$87>=0,シート!$DK$87-C103>=0),1,0) ->  | K103: 1900-04-09
A104: 102 | B104: 10 | C104: 1900-04-10 | D104: =+IF(AND(C104-シート!$BV$67>=0,シート!$AI$19-C104>=0),1,0) ->  | E104: =IF(AND(C104-シート!$C$87>=0,シート!$X$87-C104>=0),1,0) ->  | H104: =IF(AND(C104-シート!$CP$87>=0,シート!$DK$87-C104>=0),1,0) ->  | K104: 1900-04-10
A105: 103 | B105: 11 | C105: 1900-04-11 | D105: =+IF(AND(C105-シート!$BV$67>=0,シート!$AI$19-C105>=0),1,0) ->  | E105: =IF(AND(C105-シート!$C$87>=0,シート!$X$87-C105>=0),1,0) ->  | H105: =IF(AND(C105-シート!$CP$87>=0,シート!$DK$87-C105>=0),1,0) ->  | K105: 1900-04-11
A106: 104 | B106: 11 | C106: 1900-04-12 | D106: =+IF(AND(C106-シート!$BV$67>=0,シート!$AI$19-C106>=0),1,0) ->  | E106: =IF(AND(C106-シート!$C$87>=0,シート!$X$87-C106>=0),1,0) ->  | H106: =IF(AND(C106-シート!$CP$87>=0,シート!$DK$87-C106>=0),1,0) ->  | K106: 1900-04-12
A107: 105 | B107: 11 | C107: 1900-04-13 | D107: =+IF(AND(C107-シート!$BV$67>=0,シート!$AI$19-C107>=0),1,0) ->  | E107: =IF(AND(C107-シート!$C$87>=0,シート!$X$87-C107>=0),1,0) ->  | H107: =IF(AND(C107-シート!$CP$87>=0,シート!$DK$87-C107>=0),1,0) ->  | K107: 1900-04-13
A108: 106 | B108: 11 | C108: 1900-04-14 | D108: =+IF(AND(C108-シート!$BV$67>=0,シート!$AI$19-C108>=0),1,0) ->  | E108: =IF(AND(C108-シート!$C$87>=0,シート!$X$87-C108>=0),1,0) ->  | H108: =IF(AND(C108-シート!$CP$87>=0,シート!$DK$87-C108>=0),1,0) ->  | K108: 1900-04-14
A109: 107 | B109: 11 | C109: 1900-04-15 | D109: =+IF(AND(C109-シート!$BV$67>=0,シート!$AI$19-C109>=0),1,0) ->  | E109: =IF(AND(C109-シート!$C$87>=0,シート!$X$87-C109>=0),1,0) ->  | H109: =IF(AND(C109-シート!$CP$87>=0,シート!$DK$87-C109>=0),1,0) ->  | K109: 1900-04-15
A110: 108 | B110: 11 | C110: 1900-04-16 | D110: =+IF(AND(C110-シート!$BV$67>=0,シート!$AI$19-C110>=0),1,0) ->  | E110: =IF(AND(C110-シート!$C$87>=0,シート!$X$87-C110>=0),1,0) ->  | H110: =IF(AND(C110-シート!$CP$87>=0,シート!$DK$87-C110>=0),1,0) ->  | K110: 1900-04-16
A111: 109 | B111: 11 | C111: 1900-04-17 | D111: =+IF(AND(C111-シート!$BV$67>=0,シート!$AI$19-C111>=0),1,0) ->  | E111: =IF(AND(C111-シート!$C$87>=0,シート!$X$87-C111>=0),1,0) ->  | H111: =IF(AND(C111-シート!$CP$87>=0,シート!$DK$87-C111>=0),1,0) ->  | K111: 1900-04-17
A112: 110 | B112: 11 | C112: 1900-04-18 | D112: =+IF(AND(C112-シート!$BV$67>=0,シート!$AI$19-C112>=0),1,0) ->  | E112: =IF(AND(C112-シート!$C$87>=0,シート!$X$87-C112>=0),1,0) ->  | H112: =IF(AND(C112-シート!$CP$87>=0,シート!$DK$87-C112>=0),1,0) ->  | K112: 1900-04-18
A113: 111 | B113: 11 | C113: 1900-04-19 | D113: =+IF(AND(C113-シート!$BV$67>=0,シート!$AI$19-C113>=0),1,0) ->  | E113: =IF(AND(C113-シート!$C$87>=0,シート!$X$87-C113>=0),1,0) ->  | H113: =IF(AND(C113-シート!$CP$87>=0,シート!$DK$87-C113>=0),1,0) ->  | K113: 1900-04-19
A114: 112 | B114: 11 | C114: 1900-04-20 | D114: =+IF(AND(C114-シート!$BV$67>=0,シート!$AI$19-C114>=0),1,0) ->  | E114: =IF(AND(C114-シート!$C$87>=0,シート!$X$87-C114>=0),1,0) ->  | H114: =IF(AND(C114-シート!$CP$87>=0,シート!$DK$87-C114>=0),1,0) ->  | K114: 1900-04-20
A115: 113 | B115: 12 | C115: 1900-04-21 | D115: =+IF(AND(C115-シート!$BV$67>=0,シート!$AI$19-C115>=0),1,0) ->  | E115: =IF(AND(C115-シート!$C$87>=0,シート!$X$87-C115>=0),1,0) ->  | H115: =IF(AND(C115-シート!$CP$87>=0,シート!$DK$87-C115>=0),1,0) ->  | K115: 1900-04-21
A116: 114 | B116: 12 | C116: 1900-04-22 | D116: =+IF(AND(C116-シート!$BV$67>=0,シート!$AI$19-C116>=0),1,0) ->  | E116: =IF(AND(C116-シート!$C$87>=0,シート!$X$87-C116>=0),1,0) ->  | H116: =IF(AND(C116-シート!$CP$87>=0,シート!$DK$87-C116>=0),1,0) ->  | K116: 1900-04-22
A117: 115 | B117: 12 | C117: 1900-04-23 | D117: =+IF(AND(C117-シート!$BV$67>=0,シート!$AI$19-C117>=0),1,0) ->  | E117: =IF(AND(C117-シート!$C$87>=0,シート!$X$87-C117>=0),1,0) ->  | H117: =IF(AND(C117-シート!$CP$87>=0,シート!$DK$87-C117>=0),1,0) ->  | K117: 1900-04-23
A118: 116 | B118: 12 | C118: 1900-04-24 | D118: =+IF(AND(C118-シート!$BV$67>=0,シート!$AI$19-C118>=0),1,0) ->  | E118: =IF(AND(C118-シート!$C$87>=0,シート!$X$87-C118>=0),1,0) ->  | H118: =IF(AND(C118-シート!$CP$87>=0,シート!$DK$87-C118>=0),1,0) ->  | K118: 1900-04-24
A119: 117 | B119: 12 | C119: 1900-04-25 | D119: =+IF(AND(C119-シート!$BV$67>=0,シート!$AI$19-C119>=0),1,0) ->  | E119: =IF(AND(C119-シート!$C$87>=0,シート!$X$87-C119>=0),1,0) ->  | H119: =IF(AND(C119-シート!$CP$87>=0,シート!$DK$87-C119>=0),1,0) ->  | K119: 1900-04-25
A120: 118 | B120: 12 | C120: 1900-04-26 | D120: =+IF(AND(C120-シート!$BV$67>=0,シート!$AI$19-C120>=0),1,0) ->  | E120: =IF(AND(C120-シート!$C$87>=0,シート!$X$87-C120>=0),1,0) ->  | H120: =IF(AND(C120-シート!$CP$87>=0,シート!$DK$87-C120>=0),1,0) ->  | K120: 1900-04-26
A121: 119 | B121: 12 | C121: 1900-04-27 | D121: =+IF(AND(C121-シート!$BV$67>=0,シート!$AI$19-C121>=0),1,0) ->  | E121: =IF(AND(C121-シート!$C$87>=0,シート!$X$87-C121>=0),1,0) ->  | H121: =IF(AND(C121-シート!$CP$87>=0,シート!$DK$87-C121>=0),1,0) ->  | K121: 1900-04-27
A122: 120 | B122: 12 | C122: 1900-04-28 | D122: =+IF(AND(C122-シート!$BV$67>=0,シート!$AI$19-C122>=0),1,0) ->  | E122: =IF(AND(C122-シート!$C$87>=0,シート!$X$87-C122>=0),1,0) ->  | H122: =IF(AND(C122-シート!$CP$87>=0,シート!$DK$87-C122>=0),1,0) ->  | K122: 1900-04-28
A123: 121 | B123: 12 | C123: 1900-04-29 | D123: =+IF(AND(C123-シート!$BV$67>=0,シート!$AI$19-C123>=0),1,0) ->  | E123: =IF(AND(C123-シート!$C$87>=0,シート!$X$87-C123>=0),1,0) ->  | H123: =IF(AND(C123-シート!$CP$87>=0,シート!$DK$87-C123>=0),1,0) ->  | K123: 1900-04-29
A124: 122 | B124: 12 | C124: 1900-04-30 | D124: =+IF(AND(C124-シート!$BV$67>=0,シート!$AI$19-C124>=0),1,0) ->  | E124: =IF(AND(C124-シート!$C$87>=0,シート!$X$87-C124>=0),1,0) ->  | H124: =IF(AND(C124-シート!$CP$87>=0,シート!$DK$87-C124>=0),1,0) ->  | K124: 1900-04-30
A125: 123 | B125: 13 | C125: 1900-05-01 | D125: =+IF(AND(C125-シート!$BV$67>=0,シート!$AI$19-C125>=0),1,0) ->  | E125: =IF(AND(C125-シート!$C$87>=0,シート!$X$87-C125>=0),1,0) ->  | H125: =IF(AND(C125-シート!$CP$87>=0,シート!$DK$87-C125>=0),1,0) ->  | K125: 1900-05-01
A126: 124 | B126: 13 | C126: 1900-05-02 | D126: =+IF(AND(C126-シート!$BV$67>=0,シート!$AI$19-C126>=0),1,0) ->  | E126: =IF(AND(C126-シート!$C$87>=0,シート!$X$87-C126>=0),1,0) ->  | H126: =IF(AND(C126-シート!$CP$87>=0,シート!$DK$87-C126>=0),1,0) ->  | K126: 1900-05-02
A127: 125 | B127: 13 | C127: 1900-05-03 | D127: =+IF(AND(C127-シート!$BV$67>=0,シート!$AI$19-C127>=0),1,0) ->  | E127: =IF(AND(C127-シート!$C$87>=0,シート!$X$87-C127>=0),1,0) ->  | H127: =IF(AND(C127-シート!$CP$87>=0,シート!$DK$87-C127>=0),1,0) ->  | K127: 1900-05-03
A128: 126 | B128: 13 | C128: 1900-05-04 | D128: =+IF(AND(C128-シート!$BV$67>=0,シート!$AI$19-C128>=0),1,0) ->  | E128: =IF(AND(C128-シート!$C$87>=0,シート!$X$87-C128>=0),1,0) ->  | H128: =IF(AND(C128-シート!$CP$87>=0,シート!$DK$87-C128>=0),1,0) ->  | K128: 1900-05-04
A129: 127 | B129: 13 | C129: 1900-05-05 | D129: =+IF(AND(C129-シート!$BV$67>=0,シート!$AI$19-C129>=0),1,0) ->  | E129: =IF(AND(C129-シート!$C$87>=0,シート!$X$87-C129>=0),1,0) ->  | H129: =IF(AND(C129-シート!$CP$87>=0,シート!$DK$87-C129>=0),1,0) ->  | K129: 1900-05-05
A130: 128 | B130: 13 | C130: 1900-05-06 | D130: =+IF(AND(C130-シート!$BV$67>=0,シート!$AI$19-C130>=0),1,0) ->  | E130: =IF(AND(C130-シート!$C$87>=0,シート!$X$87-C130>=0),1,0) ->  | H130: =IF(AND(C130-シート!$CP$87>=0,シート!$DK$87-C130>=0),1,0) ->  | K130: 1900-05-06
A131: 129 | B131: 13 | C131: 1900-05-07 | D131: =+IF(AND(C131-シート!$BV$67>=0,シート!$AI$19-C131>=0),1,0) ->  | E131: =IF(AND(C131-シート!$C$87>=0,シート!$X$87-C131>=0),1,0) ->  | H131: =IF(AND(C131-シート!$CP$87>=0,シート!$DK$87-C131>=0),1,0) ->  | K131: 1900-05-07
A132: 130 | B132: 13 | C132: 1900-05-08 | D132: =+IF(AND(C132-シート!$BV$67>=0,シート!$AI$19-C132>=0),1,0) ->  | E132: =IF(AND(C132-シート!$C$87>=0,シート!$X$87-C132>=0),1,0) ->  | F132: =IF(+D132+E132=2,1,0) ->  | H132: =IF(AND(C132-シート!$CP$87>=0,シート!$DK$87-C132>=0),1,0) ->  | I132: =IF(+D132+H132=2,1,0) ->  | K132: =+C132 -> 1900-05-08
A133: =+A132+1 -> 131 | B133: 13 | C133: =+C132+1 -> 1900-05-09 | D133: =+IF(AND(C133-シート!$BV$67>=0,シート!$AI$19-C133>=0),1,0) ->  | E133: =IF(AND(C133-シート!$C$87>=0,シート!$X$87-C133>=0),1,0) ->  | G133: =+G132+F133 ->  | H133: =IF(AND(C133-シート!$CP$87>=0,シート!$DK$87-C133>=0),1,0) ->  | J133: =+J132+I133 ->  | K133: 1900-05-09
A134: 132 | B134: 13 | C134: 1900-05-10 | D134: =+IF(AND(C134-シート!$BV$67>=0,シート!$AI$19-C134>=0),1,0) ->  | E134: =IF(AND(C134-シート!$C$87>=0,シート!$X$87-C134>=0),1,0) ->  | H134: =IF(AND(C134-シート!$CP$87>=0,シート!$DK$87-C134>=0),1,0) ->  | K134: 1900-05-10
A135: 133 | B135: 14 | C135: 1900-05-11 | D135: =+IF(AND(C135-シート!$BV$67>=0,シート!$AI$19-C135>=0),1,0) ->  | E135: =IF(AND(C135-シート!$C$87>=0,シート!$X$87-C135>=0),1,0) ->  | H135: =IF(AND(C135-シート!$CP$87>=0,シート!$DK$87-C135>=0),1,0) ->  | K135: 1900-05-11
A136: 134 | B136: 14 | C136: 1900-05-12 | D136: =+IF(AND(C136-シート!$BV$67>=0,シート!$AI$19-C136>=0),1,0) ->  | E136: =IF(AND(C136-シート!$C$87>=0,シート!$X$87-C136>=0),1,0) ->  | H136: =IF(AND(C136-シート!$CP$87>=0,シート!$DK$87-C136>=0),1,0) ->  | K136: 1900-05-12
A137: 135 | B137: 14 | C137: 1900-05-13 | D137: =+IF(AND(C137-シート!$BV$67>=0,シート!$AI$19-C137>=0),1,0) ->  | E137: =IF(AND(C137-シート!$C$87>=0,シート!$X$87-C137>=0),1,0) ->  | H137: =IF(AND(C137-シート!$CP$87>=0,シート!$DK$87-C137>=0),1,0) ->  | K137: 1900-05-13
A138: 136 | B138: 14 | C138: 1900-05-14 | D138: =+IF(AND(C138-シート!$BV$67>=0,シート!$AI$19-C138>=0),1,0) ->  | E138: =IF(AND(C138-シート!$C$87>=0,シート!$X$87-C138>=0),1,0) ->  | H138: =IF(AND(C138-シート!$CP$87>=0,シート!$DK$87-C138>=0),1,0) ->  | K138: 1900-05-14
A139: 137 | B139: 14 | C139: 1900-05-15 | D139: =+IF(AND(C139-シート!$BV$67>=0,シート!$AI$19-C139>=0),1,0) ->  | E139: =IF(AND(C139-シート!$C$87>=0,シート!$X$87-C139>=0),1,0) ->  | H139: =IF(AND(C139-シート!$CP$87>=0,シート!$DK$87-C139>=0),1,0) ->  | K139: 1900-05-15
A140: 138 | B140: 14 | C140: 1900-05-16 | D140: =+IF(AND(C140-シート!$BV$67>=0,シート!$AI$19-C140>=0),1,0) ->  | E140: =IF(AND(C140-シート!$C$87>=0,シート!$X$87-C140>=0),1,0) ->  | H140: =IF(AND(C140-シート!$CP$87>=0,シート!$DK$87-C140>=0),1,0) ->  | K140: 1900-05-16
A141: 139 | B141: 14 | C141: 1900-05-17 | D141: =+IF(AND(C141-シート!$BV$67>=0,シート!$AI$19-C141>=0),1,0) ->  | E141: =IF(AND(C141-シート!$C$87>=0,シート!$X$87-C141>=0),1,0) ->  | H141: =IF(AND(C141-シート!$CP$87>=0,シート!$DK$87-C141>=0),1,0) ->  | K141: 1900-05-17
A142: 140 | B142: 14 | C142: 1900-05-18 | D142: =+IF(AND(C142-シート!$BV$67>=0,シート!$AI$19-C142>=0),1,0) ->  | E142: =IF(AND(C142-シート!$C$87>=0,シート!$X$87-C142>=0),1,0) ->  | H142: =IF(AND(C142-シート!$CP$87>=0,シート!$DK$87-C142>=0),1,0) ->  | K142: 1900-05-18
A143: 141 | B143: 14 | C143: 1900-05-19 | D143: =+IF(AND(C143-シート!$BV$67>=0,シート!$AI$19-C143>=0),1,0) ->  | E143: =IF(AND(C143-シート!$C$87>=0,シート!$X$87-C143>=0),1,0) ->  | H143: =IF(AND(C143-シート!$CP$87>=0,シート!$DK$87-C143>=0),1,0) ->  | K143: 1900-05-19
A144: 142 | B144: 14 | C144: 1900-05-20 | D144: =+IF(AND(C144-シート!$BV$67>=0,シート!$AI$19-C144>=0),1,0) ->  | E144: =IF(AND(C144-シート!$C$87>=0,シート!$X$87-C144>=0),1,0) ->  | H144: =IF(AND(C144-シート!$CP$87>=0,シート!$DK$87-C144>=0),1,0) ->  | K144: 1900-05-20
A145: 143 | B145: 14 | C145: 1900-05-21 | D145: =+IF(AND(C145-シート!$BV$67>=0,シート!$AI$19-C145>=0),1,0) ->  | E145: =IF(AND(C145-シート!$C$87>=0,シート!$X$87-C145>=0),1,0) ->  | H145: =IF(AND(C145-シート!$CP$87>=0,シート!$DK$87-C145>=0),1,0) ->  | K145: 1900-05-21
A146: 144 | B146: 15 | C146: 1900-05-22 | D146: =+IF(AND(C146-シート!$BV$67>=0,シート!$AI$19-C146>=0),1,0) ->  | E146: =IF(AND(C146-シート!$C$87>=0,シート!$X$87-C146>=0),1,0) ->  | H146: =IF(AND(C146-シート!$CP$87>=0,シート!$DK$87-C146>=0),1,0) ->  | K146: 1900-05-22
A147: 145 | B147: 15 | C147: 1900-05-23 | D147: =+IF(AND(C147-シート!$BV$67>=0,シート!$AI$19-C147>=0),1,0) ->  | E147: =IF(AND(C147-シート!$C$87>=0,シート!$X$87-C147>=0),1,0) ->  | H147: =IF(AND(C147-シート!$CP$87>=0,シート!$DK$87-C147>=0),1,0) ->  | K147: 1900-05-23
A148: 146 | B148: 15 | C148: 1900-05-24 | D148: =+IF(AND(C148-シート!$BV$67>=0,シート!$AI$19-C148>=0),1,0) ->  | E148: =IF(AND(C148-シート!$C$87>=0,シート!$X$87-C148>=0),1,0) ->  | H148: =IF(AND(C148-シート!$CP$87>=0,シート!$DK$87-C148>=0),1,0) ->  | K148: 1900-05-24
A149: 147 | B149: 15 | C149: 1900-05-25 | D149: =+IF(AND(C149-シート!$BV$67>=0,シート!$AI$19-C149>=0),1,0) ->  | E149: =IF(AND(C149-シート!$C$87>=0,シート!$X$87-C149>=0),1,0) ->  | H149: =IF(AND(C149-シート!$CP$87>=0,シート!$DK$87-C149>=0),1,0) ->  | K149: 1900-05-25
A150: 148 | B150: 15 | C150: 1900-05-26 | D150: =+IF(AND(C150-シート!$BV$67>=0,シート!$AI$19-C150>=0),1,0) ->  | E150: =IF(AND(C150-シート!$C$87>=0,シート!$X$87-C150>=0),1,0) ->  | H150: =IF(AND(C150-シート!$CP$87>=0,シート!$DK$87-C150>=0),1,0) ->  | K150: 1900-05-26
A151: 149 | B151: 15 | C151: 1900-05-27 | D151: =+IF(AND(C151-シート!$BV$67>=0,シート!$AI$19-C151>=0),1,0) ->  | E151: =IF(AND(C151-シート!$C$87>=0,シート!$X$87-C151>=0),1,0) ->  | H151: =IF(AND(C151-シート!$CP$87>=0,シート!$DK$87-C151>=0),1,0) ->  | K151: 1900-05-27
A152: 150 | B152: 15 | C152: 1900-05-28 | D152: =+IF(AND(C152-シート!$BV$67>=0,シート!$AI$19-C152>=0),1,0) ->  | E152: =IF(AND(C152-シート!$C$87>=0,シート!$X$87-C152>=0),1,0) ->  | H152: =IF(AND(C152-シート!$CP$87>=0,シート!$DK$87-C152>=0),1,0) ->  | K152: 1900-05-28
A153: 151 | B153: 15 | C153: 1900-05-29 | D153: =+IF(AND(C153-シート!$BV$67>=0,シート!$AI$19-C153>=0),1,0) ->  | E153: =IF(AND(C153-シート!$C$87>=0,シート!$X$87-C153>=0),1,0) ->  | H153: =IF(AND(C153-シート!$CP$87>=0,シート!$DK$87-C153>=0),1,0) ->  | K153: 1900-05-29
A154: 152 | B154: 15 | C154: 1900-05-30 | D154: =+IF(AND(C154-シート!$BV$67>=0,シート!$AI$19-C154>=0),1,0) ->  | E154: =IF(AND(C154-シート!$C$87>=0,シート!$X$87-C154>=0),1,0) ->  | H154: =IF(AND(C154-シート!$CP$87>=0,シート!$DK$87-C154>=0),1,0) ->  | K154: 1900-05-30
A155: 153 | B155: 15 | C155: 1900-05-31 | D155: =+IF(AND(C155-シート!$BV$67>=0,シート!$AI$19-C155>=0),1,0) ->  | E155: =IF(AND(C155-シート!$C$87>=0,シート!$X$87-C155>=0),1,0) ->  | H155: =IF(AND(C155-シート!$CP$87>=0,シート!$DK$87-C155>=0),1,0) ->  | K155: 1900-05-31
A156: 154 | B156: 16 | C156: 1900-06-01 | D156: =+IF(AND(C156-シート!$BV$67>=0,シート!$AI$19-C156>=0),1,0) ->  | E156: =IF(AND(C156-シート!$C$87>=0,シート!$X$87-C156>=0),1,0) ->  | H156: =IF(AND(C156-シート!$CP$87>=0,シート!$DK$87-C156>=0),1,0) ->  | K156: 1900-06-01
A157: 155 | B157: 16 | C157: 1900-06-02 | D157: =+IF(AND(C157-シート!$BV$67>=0,シート!$AI$19-C157>=0),1,0) ->  | E157: =IF(AND(C157-シート!$C$87>=0,シート!$X$87-C157>=0),1,0) ->  | H157: =IF(AND(C157-シート!$CP$87>=0,シート!$DK$87-C157>=0),1,0) ->  | K157: 1900-06-02
A158: 156 | B158: 16 | C158: 1900-06-03 | D158: =+IF(AND(C158-シート!$BV$67>=0,シート!$AI$19-C158>=0),1,0) ->  | E158: =IF(AND(C158-シート!$C$87>=0,シート!$X$87-C158>=0),1,0) ->  | H158: =IF(AND(C158-シート!$CP$87>=0,シート!$DK$87-C158>=0),1,0) ->  | K158: 1900-06-03
A159: 157 | B159: 16 | C159: 1900-06-04 | D159: =+IF(AND(C159-シート!$BV$67>=0,シート!$AI$19-C159>=0),1,0) ->  | E159: =IF(AND(C159-シート!$C$87>=0,シート!$X$87-C159>=0),1,0) ->  | H159: =IF(AND(C159-シート!$CP$87>=0,シート!$DK$87-C159>=0),1,0) ->  | K159: 1900-06-04
A160: 158 | B160: 16 | C160: 1900-06-05 | D160: =+IF(AND(C160-シート!$BV$67>=0,シート!$AI$19-C160>=0),1,0) ->  | E160: =IF(AND(C160-シート!$C$87>=0,シート!$X$87-C160>=0),1,0) ->  | H160: =IF(AND(C160-シート!$CP$87>=0,シート!$DK$87-C160>=0),1,0) ->  | K160: 1900-06-05
A161: 159 | B161: 16 | C161: 1900-06-06 | D161: =+IF(AND(C161-シート!$BV$67>=0,シート!$AI$19-C161>=0),1,0) ->  | E161: =IF(AND(C161-シート!$C$87>=0,シート!$X$87-C161>=0),1,0) ->  | H161: =IF(AND(C161-シート!$CP$87>=0,シート!$DK$87-C161>=0),1,0) ->  | K161: 1900-06-06
A162: 160 | B162: 16 | C162: 1900-06-07 | D162: =+IF(AND(C162-シート!$BV$67>=0,シート!$AI$19-C162>=0),1,0) ->  | E162: =IF(AND(C162-シート!$C$87>=0,シート!$X$87-C162>=0),1,0) ->  | H162: =IF(AND(C162-シート!$CP$87>=0,シート!$DK$87-C162>=0),1,0) ->  | K162: 1900-06-07
A163: 161 | B163: 16 | C163: 1900-06-08 | D163: =+IF(AND(C163-シート!$BV$67>=0,シート!$AI$19-C163>=0),1,0) ->  | E163: =IF(AND(C163-シート!$C$87>=0,シート!$X$87-C163>=0),1,0) ->  | H163: =IF(AND(C163-シート!$CP$87>=0,シート!$DK$87-C163>=0),1,0) ->  | K163: 1900-06-08
A164: 162 | B164: 16 | C164: 1900-06-09 | D164: =+IF(AND(C164-シート!$BV$67>=0,シート!$AI$19-C164>=0),1,0) ->  | E164: =IF(AND(C164-シート!$C$87>=0,シート!$X$87-C164>=0),1,0) ->  | H164: =IF(AND(C164-シート!$CP$87>=0,シート!$DK$87-C164>=0),1,0) ->  | K164: 1900-06-09
A165: 163 | B165: 16 | C165: 1900-06-10 | D165: =+IF(AND(C165-シート!$BV$67>=0,シート!$AI$19-C165>=0),1,0) ->  | E165: =IF(AND(C165-シート!$C$87>=0,シート!$X$87-C165>=0),1,0) ->  | H165: =IF(AND(C165-シート!$CP$87>=0,シート!$DK$87-C165>=0),1,0) ->  | K165: 1900-06-10
A166: 164 | B166: 17 | C166: 1900-06-11 | D166: =+IF(AND(C166-シート!$BV$67>=0,シート!$AI$19-C166>=0),1,0) ->  | E166: =IF(AND(C166-シート!$C$87>=0,シート!$X$87-C166>=0),1,0) ->  | H166: =IF(AND(C166-シート!$CP$87>=0,シート!$DK$87-C166>=0),1,0) ->  | K166: 1900-06-11
A167: 165 | B167: 17 | C167: 1900-06-12 | D167: =+IF(AND(C167-シート!$BV$67>=0,シート!$AI$19-C167>=0),1,0) ->  | E167: =IF(AND(C167-シート!$C$87>=0,シート!$X$87-C167>=0),1,0) ->  | H167: =IF(AND(C167-シート!$CP$87>=0,シート!$DK$87-C167>=0),1,0) ->  | K167: 1900-06-12
A168: 166 | B168: 17 | C168: 1900-06-13 | D168: =+IF(AND(C168-シート!$BV$67>=0,シート!$AI$19-C168>=0),1,0) ->  | E168: =IF(AND(C168-シート!$C$87>=0,シート!$X$87-C168>=0),1,0) ->  | H168: =IF(AND(C168-シート!$CP$87>=0,シート!$DK$87-C168>=0),1,0) ->  | K168: 1900-06-13
A169: 167 | B169: 17 | C169: 1900-06-14 | D169: =+IF(AND(C169-シート!$BV$67>=0,シート!$AI$19-C169>=0),1,0) ->  | E169: =IF(AND(C169-シート!$C$87>=0,シート!$X$87-C169>=0),1,0) ->  | H169: =IF(AND(C169-シート!$CP$87>=0,シート!$DK$87-C169>=0),1,0) ->  | K169: 1900-06-14
A170: 168 | B170: 17 | C170: 1900-06-15 | D170: =+IF(AND(C170-シート!$BV$67>=0,シート!$AI$19-C170>=0),1,0) ->  | E170: =IF(AND(C170-シート!$C$87>=0,シート!$X$87-C170>=0),1,0) ->  | H170: =IF(AND(C170-シート!$CP$87>=0,シート!$DK$87-C170>=0),1,0) ->  | K170: 1900-06-15
A171: 169 | B171: 17 | C171: 1900-06-16 | D171: =+IF(AND(C171-シート!$BV$67>=0,シート!$AI$19-C171>=0),1,0) ->  | E171: =IF(AND(C171-シート!$C$87>=0,シート!$X$87-C171>=0),1,0) ->  | H171: =IF(AND(C171-シート!$CP$87>=0,シート!$DK$87-C171>=0),1,0) ->  | K171: 1900-06-16
A172: 170 | B172: 17 | C172: 1900-06-17 | D172: =+IF(AND(C172-シート!$BV$67>=0,シート!$AI$19-C172>=0),1,0) ->  | E172: =IF(AND(C172-シート!$C$87>=0,シート!$X$87-C172>=0),1,0) ->  | H172: =IF(AND(C172-シート!$CP$87>=0,シート!$DK$87-C172>=0),1,0) ->  | K172: 1900-06-17
A173: 171 | B173: 17 | C173: 1900-06-18 | D173: =+IF(AND(C173-シート!$BV$67>=0,シート!$AI$19-C173>=0),1,0) ->  | E173: =IF(AND(C173-シート!$C$87>=0,シート!$X$87-C173>=0),1,0) ->  | H173: =IF(AND(C173-シート!$CP$87>=0,シート!$DK$87-C173>=0),1,0) ->  | K173: 1900-06-18
A174: 172 | B174: 17 | C174: 1900-06-19 | D174: =+IF(AND(C174-シート!$BV$67>=0,シート!$AI$19-C174>=0),1,0) ->  | E174: =IF(AND(C174-シート!$C$87>=0,シート!$X$87-C174>=0),1,0) ->  | H174: =IF(AND(C174-シート!$CP$87>=0,シート!$DK$87-C174>=0),1,0) ->  | K174: 1900-06-19
A175: 173 | B175: 17 | C175: 1900-06-20 | D175: =+IF(AND(C175-シート!$BV$67>=0,シート!$AI$19-C175>=0),1,0) ->  | E175: =IF(AND(C175-シート!$C$87>=0,シート!$X$87-C175>=0),1,0) ->  | H175: =IF(AND(C175-シート!$CP$87>=0,シート!$DK$87-C175>=0),1,0) ->  | K175: 1900-06-20
A176: 174 | B176: 18 | C176: 1900-06-21 | D176: =+IF(AND(C176-シート!$BV$67>=0,シート!$AI$19-C176>=0),1,0) ->  | E176: =IF(AND(C176-シート!$C$87>=0,シート!$X$87-C176>=0),1,0) ->  | H176: =IF(AND(C176-シート!$CP$87>=0,シート!$DK$87-C176>=0),1,0) ->  | K176: 1900-06-21
A177: 175 | B177: 18 | C177: 1900-06-22 | D177: =+IF(AND(C177-シート!$BV$67>=0,シート!$AI$19-C177>=0),1,0) ->  | E177: =IF(AND(C177-シート!$C$87>=0,シート!$X$87-C177>=0),1,0) ->  | H177: =IF(AND(C177-シート!$CP$87>=0,シート!$DK$87-C177>=0),1,0) ->  | K177: 1900-06-22
A178: 176 | B178: 18 | C178: 1900-06-23 | D178: =+IF(AND(C178-シート!$BV$67>=0,シート!$AI$19-C178>=0),1,0) ->  | E178: =IF(AND(C178-シート!$C$87>=0,シート!$X$87-C178>=0),1,0) ->  | H178: =IF(AND(C178-シート!$CP$87>=0,シート!$DK$87-C178>=0),1,0) ->  | K178: 1900-06-23
A179: 177 | B179: 18 | C179: 1900-06-24 | D179: =+IF(AND(C179-シート!$BV$67>=0,シート!$AI$19-C179>=0),1,0) ->  | E179: =IF(AND(C179-シート!$C$87>=0,シート!$X$87-C179>=0),1,0) ->  | H179: =IF(AND(C179-シート!$CP$87>=0,シート!$DK$87-C179>=0),1,0) ->  | K179: 1900-06-24
A180: 178 | B180: 18 | C180: 1900-06-25 | D180: =+IF(AND(C180-シート!$BV$67>=0,シート!$AI$19-C180>=0),1,0) ->  | E180: =IF(AND(C180-シート!$C$87>=0,シート!$X$87-C180>=0),1,0) ->  | H180: =IF(AND(C180-シート!$CP$87>=0,シート!$DK$87-C180>=0),1,0) ->  | K180: 1900-06-25
A181: 179 | B181: 18 | C181: 1900-06-26 | D181: =+IF(AND(C181-シート!$BV$67>=0,シート!$AI$19-C181>=0),1,0) ->  | E181: =IF(AND(C181-シート!$C$87>=0,シート!$X$87-C181>=0),1,0) ->  | H181: =IF(AND(C181-シート!$CP$87>=0,シート!$DK$87-C181>=0),1,0) ->  | K181: 1900-06-26
A182: 180 | B182: 18 | C182: 1900-06-27 | D182: =+IF(AND(C182-シート!$BV$67>=0,シート!$AI$19-C182>=0),1,0) ->  | E182: =IF(AND(C182-シート!$C$87>=0,シート!$X$87-C182>=0),1,0) ->  | H182: =IF(AND(C182-シート!$CP$87>=0,シート!$DK$87-C182>=0),1,0) ->  | K182: 1900-06-27
A183: 181 | B183: 18 | C183: 1900-06-28 | D183: =+IF(AND(C183-シート!$BV$67>=0,シート!$AI$19-C183>=0),1,0) ->  | E183: =IF(AND(C183-シート!$C$87>=0,シート!$X$87-C183>=0),1,0) ->  | H183: =IF(AND(C183-シート!$CP$87>=0,シート!$DK$87-C183>=0),1,0) ->  | K183: 1900-06-28
A184: 182 | B184: 18 | C184: 1900-06-29 | D184: =+IF(AND(C184-シート!$BV$67>=0,シート!$AI$19-C184>=0),1,0) ->  | E184: =IF(AND(C184-シート!$C$87>=0,シート!$X$87-C184>=0),1,0) ->  | H184: =IF(AND(C184-シート!$CP$87>=0,シート!$DK$87-C184>=0),1,0) ->  | K184: 1900-06-29
A185: 183 | B185: 18 | C185: 1900-06-30 | D185: =+IF(AND(C185-シート!$BV$67>=0,シート!$AI$19-C185>=0),1,0) ->  | E185: =IF(AND(C185-シート!$C$87>=0,シート!$X$87-C185>=0),1,0) ->  | H185: =IF(AND(C185-シート!$CP$87>=0,シート!$DK$87-C185>=0),1,0) ->  | K185: 1900-06-30
A186: 184 | B186: 19 | C186: 1900-07-01 | D186: =+IF(AND(C186-シート!$BV$67>=0,シート!$AI$19-C186>=0),1,0) ->  | E186: =IF(AND(C186-シート!$C$87>=0,シート!$X$87-C186>=0),1,0) ->  | H186: =IF(AND(C186-シート!$CP$87>=0,シート!$DK$87-C186>=0),1,0) ->  | K186: 1900-07-01
A187: 185 | B187: 19 | C187: 1900-07-02 | D187: =+IF(AND(C187-シート!$BV$67>=0,シート!$AI$19-C187>=0),1,0) ->  | E187: =IF(AND(C187-シート!$C$87>=0,シート!$X$87-C187>=0),1,0) ->  | H187: =IF(AND(C187-シート!$CP$87>=0,シート!$DK$87-C187>=0),1,0) ->  | K187: 1900-07-02
A188: 186 | B188: 19 | C188: 1900-07-03 | D188: =+IF(AND(C188-シート!$BV$67>=0,シート!$AI$19-C188>=0),1,0) ->  | E188: =IF(AND(C188-シート!$C$87>=0,シート!$X$87-C188>=0),1,0) ->  | H188: =IF(AND(C188-シート!$CP$87>=0,シート!$DK$87-C188>=0),1,0) ->  | K188: 1900-07-03
A189: 187 | B189: 19 | C189: 1900-07-04 | D189: =+IF(AND(C189-シート!$BV$67>=0,シート!$AI$19-C189>=0),1,0) ->  | E189: =IF(AND(C189-シート!$C$87>=0,シート!$X$87-C189>=0),1,0) ->  | H189: =IF(AND(C189-シート!$CP$87>=0,シート!$DK$87-C189>=0),1,0) ->  | K189: 1900-07-04
A190: 188 | B190: 19 | C190: 1900-07-05 | D190: =+IF(AND(C190-シート!$BV$67>=0,シート!$AI$19-C190>=0),1,0) ->  | E190: =IF(AND(C190-シート!$C$87>=0,シート!$X$87-C190>=0),1,0) ->  | H190: =IF(AND(C190-シート!$CP$87>=0,シート!$DK$87-C190>=0),1,0) ->  | K190: 1900-07-05
A191: 189 | B191: 19 | C191: 1900-07-06 | D191: =+IF(AND(C191-シート!$BV$67>=0,シート!$AI$19-C191>=0),1,0) ->  | E191: =IF(AND(C191-シート!$C$87>=0,シート!$X$87-C191>=0),1,0) ->  | H191: =IF(AND(C191-シート!$CP$87>=0,シート!$DK$87-C191>=0),1,0) ->  | K191: 1900-07-06
A192: 190 | B192: 19 | C192: 1900-07-07 | D192: =+IF(AND(C192-シート!$BV$67>=0,シート!$AI$19-C192>=0),1,0) ->  | E192: =IF(AND(C192-シート!$C$87>=0,シート!$X$87-C192>=0),1,0) ->  | H192: =IF(AND(C192-シート!$CP$87>=0,シート!$DK$87-C192>=0),1,0) ->  | K192: 1900-07-07
A193: 191 | B193: 19 | C193: 1900-07-08 | D193: =+IF(AND(C193-シート!$BV$67>=0,シート!$AI$19-C193>=0),1,0) ->  | E193: =IF(AND(C193-シート!$C$87>=0,シート!$X$87-C193>=0),1,0) ->  | H193: =IF(AND(C193-シート!$CP$87>=0,シート!$DK$87-C193>=0),1,0) ->  | K193: 1900-07-08
A194: 192 | B194: 19 | C194: 1900-07-09 | D194: =+IF(AND(C194-シート!$BV$67>=0,シート!$AI$19-C194>=0),1,0) ->  | E194: =IF(AND(C194-シート!$C$87>=0,シート!$X$87-C194>=0),1,0) ->  | H194: =IF(AND(C194-シート!$CP$87>=0,シート!$DK$87-C194>=0),1,0) ->  | K194: 1900-07-09
A195: 193 | B195: 19 | C195: 1900-07-10 | D195: =+IF(AND(C195-シート!$BV$67>=0,シート!$AI$19-C195>=0),1,0) ->  | E195: =IF(AND(C195-シート!$C$87>=0,シート!$X$87-C195>=0),1,0) ->  | H195: =IF(AND(C195-シート!$CP$87>=0,シート!$DK$87-C195>=0),1,0) ->  | K195: 1900-07-10
A196: 194 | B196: 20 | C196: 1900-07-11 | D196: =+IF(AND(C196-シート!$BV$67>=0,シート!$AI$19-C196>=0),1,0) ->  | E196: =IF(AND(C196-シート!$C$87>=0,シート!$X$87-C196>=0),1,0) ->  | F196: =IF(+D196+E196=2,1,0) ->  | H196: =IF(AND(C196-シート!$CP$87>=0,シート!$DK$87-C196>=0),1,0) ->  | I196: =IF(+D196+H196=2,1,0) ->  | K196: =+C196 -> 1900-07-11
A197: =+A196+1 -> 195 | B197: 20 | C197: =+C196+1 -> 1900-07-12 | D197: =+IF(AND(C197-シート!$BV$67>=0,シート!$AI$19-C197>=0),1,0) ->  | E197: =IF(AND(C197-シート!$C$87>=0,シート!$X$87-C197>=0),1,0) ->  | G197: =+G196+F197 ->  | H197: =IF(AND(C197-シート!$CP$87>=0,シート!$DK$87-C197>=0),1,0) ->  | J197: =+J196+I197 ->  | K197: 1900-07-12
A198: 196 | B198: 20 | C198: 1900-07-13 | D198: =+IF(AND(C198-シート!$BV$67>=0,シート!$AI$19-C198>=0),1,0) ->  | E198: =IF(AND(C198-シート!$C$87>=0,シート!$X$87-C198>=0),1,0) ->  | H198: =IF(AND(C198-シート!$CP$87>=0,シート!$DK$87-C198>=0),1,0) ->  | K198: 1900-07-13
A199: 197 | B199: 20 | C199: 1900-07-14 | D199: =+IF(AND(C199-シート!$BV$67>=0,シート!$AI$19-C199>=0),1,0) ->  | E199: =IF(AND(C199-シート!$C$87>=0,シート!$X$87-C199>=0),1,0) ->  | H199: =IF(AND(C199-シート!$CP$87>=0,シート!$DK$87-C199>=0),1,0) ->  | K199: 1900-07-14
A200: 198 | B200: 20 | C200: 1900-07-15 | D200: =+IF(AND(C200-シート!$BV$67>=0,シート!$AI$19-C200>=0),1,0) ->  | E200: =IF(AND(C200-シート!$C$87>=0,シート!$X$87-C200>=0),1,0) ->  | H200: =IF(AND(C200-シート!$CP$87>=0,シート!$DK$87-C200>=0),1,0) ->  | K200: 1900-07-15
... 1172 more rows
